Cogmind - Beta 15 X1 @@@ ROGUE MODE // 2024.11.13 @ 03:40:55 Player: Some Pennies Result: Core destroyed Performance ------------- Evolutions (9) 4500 Regions Visited (30) 6000 Robots Destroyed (620) 3100 Value Destroyed (30601) 30601 Prototype IDs (100) 2000 Alien Tech Used (11) 2200 Bonus (23534) 23534 TOTAL SCORE: 71935 Bonus ------- Triggered High Security 500 High Alert Combat Kills 10948 Follower Combat Kills 2217 Entered Garrisons 200 Entered DSFs 500 Network Hubs Disabled 600 Met Data Miner 300 Met Imprinter 300 Destroyed Z-Imprinter 1000 Triggered Deep Caves Wall 500 Exposed GOLEM Chamber 500 Acquired ECA 300 Built Enhanced Grunts 300 Met R17 at Cetus 500 Used Core Reset Matrix 3000 Met R17 at Research 2000 Scanned by Researcher 500 Pursued by Intercept 1000 Friendly Fire -1631 Cogmind --------- Core Integrity 0/1850 Matter 425/425 Energy 1600/1600 System Corruption 0% +Membrane Temperature Cool (0) +ITN Movement Walking (170) Ox1 Location -1/Access Parts ------- > --- POWER (4) -------- Assembled Flux Generator Improved Quantum Reactor Improved Quantum Reactor > --- PROPULSION (6) --- Centrium Heavy Treads Assembled Alloy Leg Myomer Exoskeleton > --- UTILITY (12) ----- Assembled Nanovents Huge Storage Unit Assembled Biocell Array Assembled Combat Suite Assembled Alloy Armor Experimental EM Disruption Field Advanced Hacking Suite GOLEM Unit Microwarp Drive > --- WEAPON (3) ------- Assembled Focal Cannon Linked Autogun > --- INVENTORY (25) --- Biometal Leg Experimental Cooling System Experimental Energy Well (600) Zionite Biocell (600) Zionite Weapon Casing Integrity Redistributor EMDS Long-range Phase Cannon Improved Potential Cannon Z-bomb Delivery System Multitool Peak State ------------ > --- POWER ------------ Assembled Flux Generator Improved Quantum Reactor Improved Quantum Reactor > --- PROPULSION ------- Centrium Heavy Treads Assembled Alloy Leg Myomer Exoskeleton > --- UTILITY ---------- Advanced Power Amplifier Huge Storage Unit Assembled Biocell Array Assembled Combat Suite Assembled Alloy Armor Heavy Regenerative Plating Advanced Hacking Suite GOLEM Unit Microwarp Drive > --- WEAPON ----------- Assembled Focal Cannon Improved Potential Cannon > --- INVENTORY -------- Biometal Leg Experimental Cooling System Experimental Energy Well Zionite Biocell Zionite Weapon Casing Experimental EM Disruption Field Integrity Redistributor EMDS Long-range Phase Cannon Z-bomb Delivery System Multitool [Rating: 249] Favorites ----------- Power Assembled Flux Generator Engine Light Angular Momentum Engine Power Core Micro Nuclear Core Reactor Assembled Flux Generator Propulsion Assembled Alloy Leg Treads Improved Medium Treads Leg Assembled Alloy Leg Wheel Armored Huge Wheel Hover Unit Improved Hover Unit Flight Unit Cooled VTOL Module Utility Huge Storage Unit Device GOLEM Unit Storage Huge Storage Unit Processor Experimental Targeting Computer Hackware Makeshift Hacking Suite Protection Assembled Alloy Armor Artifact Microwarp Drive Weapon Assembled Focal Cannon Energy Gun Subdweller Laser Energy Cannon Assembled Focal Cannon Ballistic Gun Advanced KE Penetrator Ballistic Cannon Compact Mass Driver Launcher Missile Launcher Special Weapon Multitool Impact Weapon Gravity Flail Slashing Weapon Ripper Piercing Weapon Plasma Lance Special Melee Weapon Improved Datajack Build | -11 -10 -10 -10 -8 -8 -8 -7 -7 -7 -7 -6 -6 -6 -6 -6 -6 -5 -5 -5 -4 -4 -4 -4 -4 -3 -3 -2 -2 -2 -1 ------- Run | Yrd Mat Min Sub Mat Gar Mat Fac Low Low Dat Pro Fac Low Low Zio Dee Pro Fac DSF Fac Ext Cet Arc Hub Res Tes Res Qua Sec Acc Slots Evolved 18 | . . . . 4 . . 2 . . . . 2 . . . . . 2 . 2 . . . . 2 . 2 . . 2 Power 3 | . . . . . . . . . . . . 1 . . . . . . . . . . . . 1 . . . . 1 Propulsion 4 | . . . . 2 . . 1 . . . . . . . . . . . . . . . . . . . . . . 1 Utility 10 | . . . . 2 . . 1 . . . . 1 . . . . . 1 . 2 . . . . 1 . 2 . . . Weapon 1 | . . . . . . . . . . . . . . . . . . 1 . . . . . . . . . . . . Parts Attached 309 | 8 5 3 21 14 11 31 24 2 1 . . 22 3 9 2 27 . 2 4 12 6 9 5 18 12 26 5 5 6 16 Power 29 | 2 . . 1 1 1 5 3 . 1 . . 1 . 3 1 2 . . . . . . . . 1 1 1 1 2 2 Engine 10 | 2 . . 1 . 1 2 1 . . . . 1 . 2 . . . . . . . . . . . . . . . . Core 7 | . . . . 1 . 3 . . 1 . . . . 1 1 . . . . . . . . . . . . . . . Reactor 12 | . . . . . . . 2 . . . . . . . . 2 . . . . . . . . 1 1 1 1 2 2 Propulsion 74 | 2 . . 7 5 3 15 3 . . . . 7 . 2 . 7 . 1 3 . 1 2 1 8 . 3 . 2 . 2 Treads 39 | 2 . . 2 3 3 11 . . . . . 4 . 1 . 3 . 1 3 . 1 1 1 1 . . . 1 . 1 Leg 19 | . . . 4 . . . . . . . . . . . . 2 . . . . . 1 . 7 . 3 . 1 . 1 Wheel 4 | . . . 1 . . . . . . . . 2 . 1 . . . . . . . . . . . . . . . . Hover 5 | . . . . 2 . . 1 . . . . . . . . 2 . . . . . . . . . . . . . . Flight 7 | . . . . . . 4 2 . . . . 1 . . . . . . . . . . . . . . . . . . Utility 137 | 2 3 1 4 3 3 5 8 1 . . . 9 2 3 . 14 . 1 1 12 4 5 3 10 11 14 4 2 3 9 Device 70 | 1 1 1 2 2 3 2 3 1 . . . 3 1 3 . 6 . 1 1 5 2 2 3 5 6 6 2 1 . 7 Storage 13 | 1 2 . . . . 1 2 . . . . 2 . . . 2 . . . . 1 . . . . 1 . 1 . . Processor 9 | . . . . . . . 2 . . . . . . . . . . . . . . . . 3 1 2 . . . 1 Hackware 14 | . . . . . . 2 . . . . . 1 . . . . . . . 5 . . . 1 3 . 2 . . . Protection 30 | . . . 2 1 . . 1 . . . . 3 1 . . 6 . . . 2 1 3 . 1 1 5 . . 2 1 Artifact 1 | . . . . . . . . . . . . . . . . . . . . . . . . . . . . . 1 . Weapon 69 | 2 2 2 9 5 4 6 10 1 . . . 5 1 1 1 4 . . . . 1 2 1 . . 8 . . 1 3 Energy Gun 16 | . 1 1 3 2 1 2 2 . . . . . . . . 3 . . . . . . . . . 1 . . . . Energy Cannon 19 | . . . 2 1 . 1 3 . . . . 4 1 1 . 1 . . . . 1 . . . . 3 . . 1 . Ballistic Gun 16 | 2 . 1 4 2 1 . 1 . . . . . . . . . . . . . . 2 . . . 2 . . . 1 Ballistic Cannon 1 | . . . . . . . . . . . . . . . . . . . . . . . . . . 1 . . . . Launcher 6 | . . . . . 2 1 . 1 . . . 1 . . . . . . . . . . . . . 1 . . . . Special Weapon 3 | . 1 . . . . . 1 . . . . . . . 1 . . . . . . . . . . . . . . . Impact Weapon 3 | . . . . . . . 3 . . . . . . . . . . . . . . . . . . . . . . . Slashing Weapon 1 | . . . . . . 1 . . . . . . . . . . . . . . . . . . . . . . . . Piercing Weapon 2 | . . . . . . . . . . . . . . . . . . . . . . . . . . . . . . 2 Special Melee Weapon 2 | . . . . . . 1 . . . . . . . . . . . . . . . . 1 . . . . . . . Unidentified Prototypes 78 | . . . . 1 . 4 12 . . . . 2 1 1 . 15 . . . . . 4 . 6 3 20 . 1 3 5 Corrupted Parts 2 | . . . . . . . . . . . . . . . . . . . . . . 1 1 . . . . . . . System Corruption 15 | . . . . . . . . . . . . . . . . . . . . . . 8 7 . . . . . . . Parts Lost 36 | . 1 1 4 . . 2 . . . . 2 1 . . . 4 1 . . . . . . 8 . . 2 . 7 3 Power 4 | . . . 1 . . 1 . . . . . . . . . . . . . . . . . . . . . . 2 . Propulsion 3 | . . . 2 . . 1 . . . . . . . . . . . . . . . . . . . . . . . . Utility 24 | . 1 . 1 . . . . . . . 2 1 . . . 4 1 . . . . . . 5 . . 2 . 4 3 Weapon 5 | . . 1 . . . . . . . . . . . . . . . . . . . . . 3 . . . . 1 . Highest Loss Streak 4 | . 1 1 2 . . 2 . . . . 2 1 . . . 2 1 . . . . . . 4 . . 1 . 2 1 To Critical Strikes . | . . . . . . . . . . . . . . . . . . . . . . . . . . . . . . . Average Backups 17 | 4 8 15 9 16 18 19 9 9 10 10 9 17 22 23 23 22 22 21 22 21 19 19 19 20 20 19 18 18 17 12 Power 1 | . 1 1 . . 1 1 . 1 1 1 1 2 3 2 2 1 1 1 . . . 1 . 1 . . . 1 1 . Propulsion 2 | 1 2 6 1 1 3 3 . . . . . 3 5 4 4 3 3 3 2 1 1 1 1 1 2 2 2 2 1 1 Utility 9 | . 2 4 3 7 7 6 2 2 2 2 2 4 6 8 9 10 14 13 15 15 13 13 12 14 13 12 11 10 8 5 Weapon 3 | . 2 2 3 5 5 5 4 4 4 4 4 5 5 6 5 4 2 3 2 3 2 3 3 2 3 3 3 3 3 3 Tool/Special . | . . . . . . . . . . . . . . . . . . . . . . . . . . . . . . . Unused Backups 62 | . . 1 12 3 2 9 4 . . . . 6 . 1 . 9 . . 1 1 3 1 1 . . 3 . . 2 3 Power 7 | . . . 1 . . . . . . . . 1 . . . 2 . . 1 1 . . . . . . . . 1 . Propulsion 16 | . . . 7 . . 1 . . . . . 2 . 1 . 1 . . . . 3 1 . . . . . . . . Utility 25 | . . 1 2 2 . 7 3 . . . . 1 . . . 4 . . . . . . 1 . . 1 . . 1 2 Weapon 12 | . . . 2 1 2 1 1 . . . . 2 . . . 1 . . . . . . . . . 2 . . . . Tool/Special 2 | . . . . . . . . . . . . . . . . 1 . . . . . . . . . . . . . 1 Average Slot Usage (%) 83 | . 99 99 89 85 94 99 98 99 96 92 89 82 92 80 80 85 85 87 87 86 83 73 76 82 82 74 70 69 70 72 Engine 4 | . 14 14 13 4 8 5 . . . . . 4 6 8 9 2 . . . . . . . . . . . . . . Core 1 | . . . . 4 . 3 6 7 7 7 7 6 6 4 3 . . . . . . . . . . . . . . . Reactor 3 | . . . . . . . . . . . . . . . . 5 6 5 5 5 5 5 5 5 9 8 8 8 7 11 Treads 12 | . 28 28 11 30 36 35 . . . . . 3 20 20 20 17 13 11 13 14 12 7 5 3 4 1 . 1 1 2 Leg 8 | . . . 16 . . . . . . . . . . . . 9 19 17 14 10 10 12 14 19 13 14 13 8 13 9 Wheel 1 | . . . . . . . . . . . . 6 6 5 6 2 . . . . . . . . . . . . . . Flight 1 | . . . . . . . 37 38 38 38 38 12 . . . . . . . . . . . . . . . . . . Device 12 | . 13 14 6 9 15 9 6 6 7 7 7 12 12 19 20 14 9 14 17 14 7 8 14 17 8 12 15 16 14 17 Storage 8 | . 14 14 5 9 9 9 7 7 7 7 7 6 6 6 6 10 13 11 11 10 10 10 9 10 7 9 8 8 8 8 Hackware 2 | . . . . . . 17 13 7 7 7 4 5 2 . . . . . . 1 12 5 . . 13 5 3 4 4 4 Protection 6 | . . . 6 8 6 . 2 7 7 7 7 7 11 . . 8 9 7 5 11 8 11 10 8 3 5 8 7 8 8 Energy Gun 2 | . 4 9 9 6 13 8 . . . . . . . . . . . . . . . . . . . . . . . . Energy Cannon 9 | . . . 13 6 3 9 3 . . . . 4 13 12 8 11 12 16 15 14 14 9 9 10 8 8 9 10 8 9 Ballistic Gun 2 | . 22 18 4 4 . . . . . . . . . . . . . . . . . 1 4 4 4 1 2 1 1 . Peak Build Rating 249 | 7 10 10 20 32 32 42 58 60 60 52 52 69 71 84 89 123 119 137 134 150 154 159 168 175 180 216 234 231 240 249 Average Rating 108 | 5 8 8 15 27 27 29 51 58 55 52 51 61 70 80 86 100 116 132 131 145 145 148 159 166 176 191 226 223 221 229 On Entrance 99 | . 7 10 10 19 28 28 42 58 59 52 52 50 68 70 84 87 116 119 133 133 145 151 159 162 164 177 215 227 218 231 Naked Turns . | . . . . . . . . . . . . . . . . . . . . . . . . . . . . . . . Heaviest Build 244 | 14 50 51 62 80 74 67 25 25 25 23 23 129 145 145 141 167 167 183 174 201 194 193 192 187 208 236 242 244 241 239 Greatest Support 162 | 40 40 40 40 80 80 80 25 25 25 25 25 88 80 80 28 146 88 88 88 60 84 88 88 150 90 162 162 150 160 160 Greatest Overweight (x) 61 | . 1 1 3 1 . 2 1 . . . . 4 5 5 5 5 1 3 2 3 3 3 61 2 3 3 1 2 2 1 Average Overweight (x) 1 | . . 1 1 . . . . . . . . . 4 3 4 2 1 1 1 2 2 2 17 1 2 1 1 1 1 1 Largest Inventory Capacity 25 | 8 20 20 20 20 20 20 10 10 10 10 10 25 25 25 25 25 25 25 25 25 25 25 25 25 25 25 25 25 25 25 Average Capacity 21 | 7 15 20 10 20 20 19 10 10 10 10 10 20 25 25 25 24 25 25 25 25 25 25 24 25 25 25 25 25 25 25 Most Carried 25 | 6 13 20 20 20 20 20 10 10 10 10 10 25 25 25 25 25 25 24 25 25 25 25 25 25 25 25 25 25 25 19 Average Carried 20 | 4 8 15 10 19 19 19 9 9 10 10 9 18 24 24 24 23 24 23 24 24 23 24 23 24 24 24 23 24 23 15 Final Capacity 25 | 8 20 20 20 20 20 10 10 10 10 10 10 25 25 25 25 25 25 25 25 25 25 25 25 25 25 25 25 25 25 25 Final Carried 25 | 6 12 19 19 19 20 10 10 10 10 10 10 25 25 25 25 25 24 24 25 25 25 25 25 25 25 24 25 25 25 13 Class Distribution -------------------- 31% | Mutant 16% | Golem 10% | Scavenger-Mutant 7% | Commander-Golem 7% | Scavenger-Golem 3% | Subdweller-Mutant Dominant Class ---------------- Mutant | -10/Materials Mutant | -10/Mines Mutant | -10/Subcaves Scavenger-Mutant | -8/Materials Scavenger-Mutant | -8/Garrison Scavenger-Mutant | -8/Materials Hacker-Sprinter | -7/Factory Sprinter | -7/Lower Caves Sprinter | -7/Lower Caves Sprinter | -7/Data Miner Sprinter | -6/Proximity Caves Mutant | -6/Factory Mutant | -6/Lower Caves Mutant | -6/Lower Caves Mutant | -6/Zion Golem | -6/Deep Caves Golem | -5/Proximity Caves Golem | -5/Factory Golem | -5/DSF Infiltrator-Golem | -4/Factory Hacker-Golem | -4/Extension Commander-Golem | -4/Cetus Commander-Golem | -4/Archives Scavenger-Golem | -4/Hub_04(d) Scavenger-Golem | -3/Research Scavenger-Tank | -3/Testing Gunner | -2/Research Tank | -2/Quarantine Alien-Golem | -2/Section 7 Generator-Golem | -1/Access Resources | -11 -10 -10 -10 -8 -8 -8 -7 -7 -7 -7 -6 -6 -6 -6 -6 -6 -5 -5 -5 -4 -4 -4 -4 -4 -3 -3 -2 -2 -2 -1 ----------- Run | Yrd Mat Min Sub Mat Gar Mat Fac Low Low Dat Pro Fac Low Low Zio Dee Pro Fac DSF Fac Ext Cet Arc Hub Res Tes Res Qua Sec Acc Matter Collected 15322 | 404 75 130 1361 381 557 353 560 20 43 . 1 302 113 1233 266 1282 61 . 103 248 458 137 270 566 244 1805 656 454 1230 2009 Remotely . | . . . . . . . . . . . . . . . . . . . . . . . . . . . . . . . Salvage Created 32153 | 283 233 247 701 547 648 1609 766 22 73 . 1 1287 132 857 . 1363 357 . 615 946 2225 187 573 3133 437 3038 2375 1750 3754 3994 Parts 1519 | 34 14 20 52 18 33 98 26 . 2 . . 34 1 24 . 27 24 . 36 64 112 7 37 155 16 152 124 99 154 156 Haulers Intercepted 20 | . . . . 1 . 5 5 . . . . 4 . . . . . . . . . . . 1 1 1 . . 1 1 Recyclers Shooed 12 | . . 2 . 2 . 2 . . . . . 2 . . . . . . . . 1 . . . 1 . 1 . . 1 Parts Field Recycled 14 | . . . . . . . . . . . . . . 14 . . . . . . . . . . . . . . . . Retrieved Matter 160 | . . . . . . . . . . . . . . 160 . . . . . . . . . . . . . . . . Parts Self-Destructed 76 | . . . 17 . . . . . 25 . . . 1 10 1 . 22 . . . . . . . . . . . . . Prevented . | . . . . . . . . . . . . . . . . . . . . . . . . . . . . . . . Kills | -11 -10 -10 -10 -8 -8 -8 -7 -7 -7 -7 -6 -6 -6 -6 -6 -6 -5 -5 -5 -4 -4 -4 -4 -4 -3 -3 -2 -2 -2 -1 ------- Run | Yrd Mat Min Sub Mat Gar Mat Fac Low Low Dat Pro Fac Low Low Zio Dee Pro Fac DSF Fac Ext Cet Arc Hub Res Tes Res Qua Sec Acc Combat Hostiles Destroyed 486 | . 3 5 19 8 16 28 . . 1 . 1 13 3 10 . 51 11 . 9 20 26 . 3 40 4 42 32 22 41 78 Melee 8 | . . . . . . . . . 1 . 1 5 . . . . . . . . . . . 1 . . . . . . Guns 77 | . 3 5 7 7 10 8 . . . . . . . . . . . . . . . . 2 13 1 5 6 1 9 . Cannons 255 | . . . 10 1 3 10 . . . . . 2 1 8 . 10 6 . 6 20 18 . 1 20 3 24 22 18 25 47 AOE 115 | . . . . . 3 9 . . . . . 4 1 . . 36 5 . 3 . 8 . . 5 . 4 4 3 . 30 Classes Destroyed 33 | 3 1 2 2 4 2 1 . 1 . . 1 1 . 2 . 4 1 . 2 . . . . 3 . 1 . . 1 1 Worker 37 | 2 1 . . . . 4 1 . . . . 1 . . . . . . . . 1 . . 10 1 2 8 3 3 . Builder 46 | . . 2 . . . 2 . . . . . 1 . . . . . . . 1 8 . . 4 . 6 7 3 6 6 Tunneler 16 | 9 1 1 . . . . 1 . . . . 1 . . . . . . . 1 2 . . . . . . . . . Hauler 20 | . . . . 1 . 5 5 . . . . 4 . . . . . . . . . . . 1 1 1 . . 1 1 Recycler 27 | 1 1 1 . 1 . 4 5 . . . . 4 . . . . . . . . 5 . . . . 1 . 2 . 2 Minesweeper 2 | . . . . . . . . 1 1 . . . . . . . . . . . . . . . . . . . . . Mechanic 4 | . . . . . . . . . . . . . . . . . . . . . . . . 1 . . 1 . 1 1 Operator 16 | . . . . 2 . 1 . . . . . . . . . . . . . 1 . . 8 1 . . . 2 . 1 Drone 1 | . . . . . . . . . . . 1 . . . . . . . . . . . . . . . . . . . Watcher 18 | . . . . 2 . 2 3 . . . . 1 . . . . . . . 3 . 1 . 1 . 3 . 1 1 . Swarmer 97 | . . 3 6 3 2 11 . . . . . 8 1 . . . 8 . 3 13 8 . . . . 5 8 . 4 14 Saboteur 2 | . . . . . . . . . . . . . . . . . . . . . . . . 1 . . . . . 1 Grunt 136 | . 3 2 . 3 6 13 . . 1 . . 1 1 3 . . . . . . 6 . . 18 4 13 8 3 16 35 Brawler 8 | . . . . . . 1 . . . . . . . . . . . . . . . . . 3 . . 1 . 2 1 Duelist 10 | . . . . . 3 . . . . . . . . . . . . . . . . . . . . . . 2 . 5 Protector 3 | . . . . . . . . . . . . . . . . . . . . . . . . 1 . . . 1 . 1 Researcher 3 | . . . . . . . . . . . . . . . . . . . . . . . . . . . . . 3 . Sentry 30 | . . . . 2 4 3 . . . . . 1 1 1 . . . . 1 . 4 . 3 2 . . 4 . 3 1 Specialist 8 | . . . . . . . . . . . . . . . . . . . 3 . . . . . . . . 5 . . Hunter 28 | . . . . . 1 . . . . . . 1 . . . . . . 1 . 4 . . 1 . 2 5 4 3 6 Programmer 57 | . . . . . . . . . . . . 2 . . . . 2 . . 6 2 . . 2 . 20 5 7 7 4 Heavy 3 | . . . . . . . . . . . . . . . . . . . 1 . . . . 2 . . . . . . Q-Series 2 | . . . . . . . . . . . . . . . . . . . . . . . . . . . . . . 2 Behemoth 6 | . . . . . . . . . . . . . . . . . 1 . . 1 2 . . 1 . . 1 . . . S7 Guard 3 | . . . . . . . . . . . . . . . . . . . . . . . . . . . . . 3 . Lightning 9 | . . . . . . . . . . . . . . . . . . . . . . . . 9 . . . . . . Tracker 6 | . . . . . . . . . . . . . . . . . . . . . . . . . . . . . 2 4 Combat Programmer 5 | . . . . . . . . . . . . . . . . . . . . . . . . . . . . . 1 4 Alpha 7 1 | . . . . . . . . . . . . . . . . . . . . . . . . . . 1 . . . . Protovariant L 1 | . . . . . . . . . . . . . . . . . . . . . . . . . . 1 . . . . Artisan 2 | . . . 2 . . . . . . . . . . . . . . . . . . . . . . . . . . . Subdweller 13 | . . . 13 . . . . . . . . . . . . . . . . . . . . . . . . . . . Z-Light 2 | . . . . . . . . . . . . . . . . 2 . . . . . . . . . . . . . . Samaritan 4 | . . . . . . . . . . . . . . 4 . . . . . . . . . . . . . . . . Assembler 2 | . . . . . . . . . . . . . . . . 2 . . . . . . . . . . . . . . Assembled 41 | . . . . . . . . . . . . . . . . 41 . . . . . . . . . . . . . . Golem 7 | . . . . . . . . . . . . . . . . 7 . . . . . . . . . . . . . . Thug 2 | . . . . . . . . . . . . . . 2 . . . . . . . . . . . . . . . . Savage 3 | . . . . . . 2 . . . . . . . . . . . . . . . 1 . . . . . . . . Butcher 3 | . . . . . . . . . . . . . . 3 . . . . . . . . . . . . . . . . Mutant 1 | . . . . . . . . . . . . . . 1 . . . . . . . . . . . . . . . . Best Kill Streak 39 | 3 5 4 2 3 3 8 3 1 1 . 1 8 3 2 . 39 5 . 5 5 19 1 3 15 2 5 8 6 12 15 Combat Bots Only 37 | . 3 3 2 3 3 5 . . 1 . 1 8 3 3 . 37 5 . 5 5 11 . 1 8 2 4 5 5 6 15 Max Kills in Single Turn 16 | 1 1 1 1 1 2 4 1 1 1 . 1 4 1 1 . 16 3 . 1 2 5 1 1 6 1 2 4 4 2 5 Gunslinging 1 | . . . . . 1 . . . . . . . . . . . . . . . . . . . . . . . . . Exploded 16 | . . . . . 2 3 . . . . . 4 1 . . 16 3 . 1 . 3 . . 1 . 2 3 2 . 4 Melee 1 | . . . . . . . . . 1 . 1 1 . . . . . . . . . . . 1 . . . . . . Uniques/NPCs Destroyed 2 | . . . . . . . . . . . . . . . . 1 . . . . . 1 . . . . . . . . Z-Imprinter (-6/Deep Caves) A7 (-4/Cetus) Combat | -11 -10 -10 -10 -8 -8 -8 -7 -7 -7 -7 -6 -6 -6 -6 -6 -6 -5 -5 -5 -4 -4 -4 -4 -4 -3 -3 -2 -2 -2 -1 -------- Run | Yrd Mat Min Sub Mat Gar Mat Fac Low Low Dat Pro Fac Low Low Zio Dee Pro Fac DSF Fac Ext Cet Arc Hub Res Tes Res Qua Sec Acc Hostile Shots Fired 3927 | . 11 10 90 35 68 120 33 . . . 4 89 22 93 . 117 95 . 46 141 180 18 21 275 20 335 245 389 804 666 Missed 1411 | . 4 1 22 14 18 37 19 . . . 3 27 11 44 . 41 32 . 16 32 50 3 8 90 8 88 98 218 277 250 Damage Taken 41262 | . 111 110 1314 325 804 1184 197 . . . 255 821 44 711 . 1853 779 160 579 1611 2037 359 292 4433 268 3097 2414 1472 8183 7849 Core 4559 | . 20 43 179 32 59 163 67 . . . 57 83 3 74 . 231 105 . 53 117 77 . . 368 22 153 59 79 1314 1201 Absorbed by Shields 5510 | . . . . . . . . . . . . . 47 169 . 412 . . . 300 297 38 . . . 1504 224 495 2024 . Reduced by Siege Mode 143 | . . . . . . . . . . . . . . . . . . . . . . 6 . 56 . 7 . 6 . 68 Redirected to Shielding 592 | . . . . . . . . . . . . . . . . 146 . . . . . . . . . 100 . . 138 208 Ignored by Resistances 9952 | . . . . . . . . . . . . . . . . . 161 32 119 394 481 81 61 1330 . 1023 816 731 2202 2521 Regen/Repaired (Parts) 11265 | . . . . . . 197 16 . . . . . . . 783 . . . . . . . . . . 535 804 622 3182 5126 Core Remaining (%) 59 | 100 . . 3 . . 53 . . . . 82 . . . . . 41 . 94 . . . . 51 . 86 . . 23 . Volleys Fired 1450 | 31 12 27 80 39 45 89 5 1 . . . 19 9 37 . 72 26 6 19 58 78 13 26 131 16 156 91 59 154 151 Largest 3 | 2 2 2 2 2 2 2 1 1 . . . 2 2 2 . 2 2 1 3 3 3 3 3 3 3 3 3 3 3 3 Hottest 260 | 40 100 60 160 140 260 135 90 36 . . . 125 175 175 . 180 115 25 75 75 130 85 85 85 85 192 95 95 150 200 Shots Fired 3024 | 62 22 54 144 75 84 173 5 1 . . . 32 16 76 . 140 48 6 41 138 185 32 78 278 39 321 221 152 276 325 Gun 724 | 62 20 54 88 56 59 84 . . . . . . . . . . . . . . . 5 26 78 11 73 48 4 56 . Cannon 2237 | . . . 56 19 20 84 5 . . . . 31 15 76 . 132 46 6 35 138 178 27 52 194 28 246 171 146 220 312 Launcher 61 | . . . . . 5 5 . 1 . . . 1 1 . . 8 2 . 6 . 7 . . 6 . 2 2 2 . 13 Special 2 | . 2 . . . . . . . . . . . . . . . . . . . . . . . . . . . . . Kinetic 507 | 62 10 43 41 40 . . . . . . . . . . . . . . . . . 5 26 78 11 83 48 4 56 . Thermal 2296 | . 2 . 103 35 82 168 5 . . . . 31 15 76 . 96 46 6 35 138 178 27 52 194 28 208 171 146 157 297 Explosive 58 | . . . . . 2 5 . 1 . . . 1 1 . . 8 2 . 6 . 7 . . 6 . 2 2 2 . 13 Electromagnetic 163 | . 10 11 . . . . . . . . . . . . . 36 . . . . . . . . . 28 . . 63 15 Robot Hit Streak 29 | 8 9 5 15 9 13 15 . . . . . 8 6 22 . 15 11 . 13 11 23 5 16 26 12 29 24 25 19 26 Robot Miss Streak 9 | 3 1 4 7 5 4 9 1 . . . . 2 2 4 . 5 2 . 3 4 3 2 2 3 4 3 6 2 4 4 Penetration Max 1 | . . . . . . . . . . . . . . . . . . . . . . . 1 1 1 1 1 . 1 . Secondary Targets 3 | . 1 . . . 2 . . . . . . . . . . . . . . . . . . . . . . . . . Max Gunslinging Chain 1 | . 1 . . . 1 . . . . . . . . . . . . . . . . . . . . . . . . . Shots Hit Robots 1903 | 38 16 30 87 46 49 112 21 1 2 . 2 42 7 49 . 68 18 . 28 57 127 21 54 180 16 208 130 88 185 221 Core Hits 1131 | 16 9 16 33 20 29 59 8 . 1 . 1 17 4 25 . 117 15 . 20 27 75 4 20 124 10 76 99 46 123 137 Critical Kills 26 | . . . 2 1 . 1 1 . . . . 3 1 1 . 1 . . . . . . 2 10 . 2 1 . . . Critical Parts Destroyed 22 | 1 . 1 . . . . 1 . . . . 6 . . . . . . . . . . . 7 2 2 . . 2 . Critical Strikes 72 | 1 . 1 2 1 1 3 2 . . . . 9 1 1 . 1 . . . . . 1 3 17 2 9 1 . 15 1 Burn 3 | . . . . . 1 2 . . . . . . . . . . . . . . . . . . . . . . . . Meltdown 8 | . . . 2 . . 1 . . . . . 1 1 1 . 1 . . . . . . . . . 1 . . . . Destroy 34 | 1 . 1 . 1 . . . . . . . . . . . . . . . . . 1 3 17 2 4 1 . 3 . Corrupt 17 | . . . . . . . . . . . . . . . . . . . . . . . . . . 4 . . 12 1 Smash 10 | . . . . . . . 2 . . . . 8 . . . . . . . . . . . . . . . . . . Melee Attacks 97 | . . . . . . 1 49 4 2 . 8 31 . . . 1 . . . . . . 1 . . . . . . . Impact 71 | . . . . . . . 25 4 2 . 8 31 . . . 1 . . . . . . . . . . . . . . Slashing 24 | . . . . . . . 24 . . . . . . . . . . . . . . . . . . . . . . . Piercing . | . . . . . . . . . . . . . . . . . . . . . . . . . . . . . . . Sneak Attacks 25 | . . . . . . 1 12 1 1 . . 9 . . . . . . . . . . 1 . . . . . . . Combat Hostiles . | . . . . . . . . . . . . . . . . . . . . . . . . . . . . . . . Follow-up Attacks . | . . . . . . . . . . . . . . . . . . . . . . . . . . . . . . . Damage Inflicted 101454 | 422 228 392 1848 976 1374 3398 1675 223 235 . 158 2782 264 1591 . 5321 1158 . 1981 2773 7276 926 2334 10283 678 11314 7634 6069 8597 19544 Guns 11343 | 422 193 335 951 692 788 1086 . . . . . . . . . . . . . . . 80 401 1632 232 1542 1165 115 1709 . Cannons 61929 | . . . 897 284 275 1475 27 . . . . 553 226 1591 . 2376 797 . 1339 2770 5941 846 1933 5759 446 8543 4966 4240 6521 10124 Explosions 23632 | . 35 44 . . 311 777 . . . . . 261 38 . . 2945 361 . 642 . 1296 . . 2892 . 1210 1458 1713 271 9378 Melee 4232 | . . . . . . . 1648 223 235 . 158 1968 . . . . . . . . . . . . . . . . . . Ramming 318 | . . 13 . . . 60 . . . . . . . . . . . . . 3 39 . . . . 19 45 1 96 42 Kinetic 8669 | 422 71 242 502 420 . . . . . . . . . . . . . . . . . 80 401 1632 232 1678 1165 115 1709 . Thermal 60831 | . 35 44 1346 556 1187 2561 27 . . . . 553 226 1591 . 1703 797 . 1339 2770 5941 846 1933 5759 446 6904 4966 4240 4324 10737 Explosive 20217 | . . . . . 187 777 . . . . . 261 38 . . 2945 361 . 642 . 1296 . . 971 . 1210 1458 1713 . 8358 Electromagnetic 7187 | . 122 93 . . . . . . . . . . . . . 673 . . . . . . . 1921 . 1503 . . 2468 407 Impact 3538 | . . . . . . . 954 223 235 . 158 1968 . . . . . . . . . . . . . . . . . . Slashing 694 | . . . . . . . 694 . . . . . . . . . . . . . . . . . . . . . . . Piercing . | . . . . . . . . . . . . . . . . . . . . . . . . . . . . . . . Highest Corruption 21 | . . . . 2 1 1 . . . . 6 2 1 2 2 . 3 3 3 6 6 9 7 21 1 20 8 10 7 . Average Corruption 5 | . . . . 1 1 1 . . . . 6 1 1 1 2 . 2 3 3 3 5 5 3 12 1 12 2 5 5 . Corruption Purged 27 | . . . . 2 . 1 . . . . . 2 . . . . . . . . 6 6 10 . . . . . . . Corruption Blocked . | . . . . . . . . . . . . . . . . . . . . . . . . . . . . . . . Effects 412 | . . . . 3 4 . . . . . 2 8 3 17 . . 11 . 7 28 47 10 9 34 4 122 14 47 42 . Message Errors 107 | . . . . . . . . . . . 1 . 2 7 . . 3 . 3 11 10 2 1 8 . 33 2 12 12 . Matter Fused 106 | . . . . 1 2 . . . . . . 3 . 3 . . 4 . 2 5 11 3 2 5 1 38 4 11 11 . Heat Flow Errors 44 | . . . . . . . . . . . . . . . . . . . 1 4 8 2 2 2 . 17 2 3 3 . Energy Discharges 45 | . . . . . 2 . . . . . 1 1 . 4 . . 3 . . 1 4 2 1 5 . 9 2 9 1 . Parts Rejected 7 | . . . . . . . . . . . . . . . . . . . . 2 . 1 . . . . . . 4 . Parts Fused 4 | . . . . . . . . . . . . 1 . 1 . . . . . 1 1 . . . . . . . . . Data Loss (minor) 40 | . . . . . . . . . . . . 2 . . . . 1 . . . 6 . 2 4 3 11 . 6 5 . Data Loss (major) 17 | . . . . . . . . . . . . . . . . . . . 1 . 4 . 1 2 . 4 2 1 2 . Misfires 11 | . . . . . . . . . . . . . 1 2 . . . . . . 1 . . . . 4 1 . 2 . Alerts 9 | . . . . 2 . . . . . . . 1 . . . . . . . 2 1 . . 2 . . . 1 . . Misdirections 1 | . . . . . . . . . . . . . . . . . . . . . . . . . . 1 . . . . Weapon Failures 21 | . . . . . . . . . . . . . . . . . . . . 2 1 . . 6 . 5 1 4 2 . Overload Shots . | . . . . . . . . . . . . . . . . . . . . . . . . . . . . . . . Overflow Damage 5620 | . 6 13 . 4 5 73 303 203 129 . 9 1030 . 41 . 155 29 . 26 213 162 . 92 266 . 839 286 426 215 1095 Projectiles 1935 | . . . . 4 . 31 . . . . . 41 . 41 . 85 29 . 15 213 129 . 92 176 . 579 199 55 156 90 Explosions 2046 | . 6 13 . . 5 42 . . . . . . . . . 70 . . 11 . 33 . . 90 . 260 87 371 59 999 Melee 1639 | . . . . . . . 303 203 129 . 9 989 . . . . . . . . . . . . . . . . . 6 Knockbacks 14 | . . . . . . . 2 . 1 . . 6 . . . . . . . . . . . . . 3 . . 1 1 Impact 11 | . . . . . . . 2 . 1 . . 5 . . . . . . . . . . . . . 1 . . 1 1 Kinetic 2 | . . . . . . . . . . . . . . . . . . . . . . . . . . 2 . . . . Secondary 1 | . . . . . . . . . . . . 1 . . . . . . . . . . . . . . . . . . Self-Inflicted Damage 705 | . 36 30 . . . 13 . . . . . 31 . . . 46 . . 17 . . . . 186 . . . 87 58 201 Shots 15 | . 1 1 . . . 1 . . . . . 1 . . . 2 . . 1 . . . . 3 . . . 1 1 3 Rammed 7 | . . 2 . . . 5 . . . . . . . . . . . . . . . . . . . . . . . . Targets Rammed 31 | . . 2 . . . 8 . . . . . . . . . . . . . 1 4 . . . . 3 2 1 8 2 Kicked 21 | . . . . . . . . . . . . . . . . . . . . 1 4 . . . . 3 2 1 8 2 Crushed 3 | . . . . . . 3 . . . . . . . . . . . . . . . . . . . . . . . . Highest Temperature 372 | . 24 12 96 200 200 270 152 2 2 2 2 28 164 114 . 363 250 . 50 198 234 245 183 191 6 372 276 124 201 198 Average Temperature 58 | . 14 9 19 63 92 67 26 2 2 2 2 15 84 34 . 76 126 . 50 104 56 71 30 27 2 65 65 61 60 102 Received Heat Transfer 4989 | . 42 18 204 111 198 666 30 . . . . 105 8 79 . 320 48 . 18 227 344 8 27 579 30 377 279 62 570 639 Effects 5 | . . . . . 1 1 . . . . . . . . . . . . . . . . . . . . . . 3 . Energy Bleed 3 | . . . . . 1 1 . . . . . . . . . . . . . . . . . . . . . . 1 . Interference 2 | . . . . . . . . . . . . . . . . . . . . . . . . . . . . . 2 . Siege Activations 10 | . . . . . . . . . . . . . . . . . . . . . 1 1 1 3 . 1 . 1 . 2 Total Turns 287 | . . . . . . . . . . . . . . . . . . . . . 11 14 7 134 . 28 . 31 . 62 Longest Duration 101 | . . . . . . . . . . . . . . . . . . . . . 11 14 7 101 . 28 . 31 . 46 Martial Activations . | . . . . . . . . . . . . . . . . . . . . . . . . . . . . . . . Shielding Activations . | . . . . . . . . . . . . . . . . . . . . . . . . . . . . . . . Robots Disrupted 1 | . . . . . . . . . . . . . . . . . . . . . . . . . . . . . 1 . Combat Hostiles 1 | . . . . . . . . . . . . . . . . . . . . . . . . . . . . . 1 . Robots Corrupted 36 | . . . . . . . 4 . 1 . . 7 . . . 4 . . . . . . . 1 . 8 . . 10 1 Combat Hostiles 22 | . . . . . . . . . . . . 1 . . . 4 . . . . . . . 1 . 8 . . 7 1 Parts Fried 78 | . . . . . . . 5 . 2 . . 20 . . . 2 . . . . . . . 7 . 19 . . 21 2 Impact Corruptions 46 | . . . . . . . 9 5 4 . 1 25 . . . . . . . . . . . . . 1 . . . 1 Robots Melted 9 | . . . 2 . . 1 . . . . . 1 1 2 . 1 . . . . . . . . . 1 . . . . Combat Hostiles 9 | . . . 2 . . 1 . . . . . 1 1 2 . 1 . . . . . . . . . 1 . . . . Parts Melted 69 | . . . 3 1 5 6 . . . . . 4 1 9 . 3 2 . . . 4 1 2 7 . 5 3 3 1 9 Heat Transferred 42165 | . 50 . 2087 756 2033 4465 37 . . . . 777 311 2162 . 1323 525 . 700 1450 3424 475 1000 2825 250 3560 2700 2183 2746 6326 Parts Sabotaged 2 | . . . . . . . . . . . . . . . . . . . . . . . . . . . . . 2 . Parts Stolen . | . . . . . . . . . . . . . . . . . . . . . . . . . . . . . . . Parts Stripped . | . . . . . . . . . . . . . . . . . . . . . . . . . . . . . . . Power Chain Reactions 3 | . 1 1 . . . . . . . . . . . . . . . . . . . . . . . . . . 1 . Alert | -11 -10 -10 -10 -8 -8 -8 -7 -7 -7 -7 -6 -6 -6 -6 -6 -6 -5 -5 -5 -4 -4 -4 -4 -4 -3 -3 -2 -2 -2 -1 ------- Run | Yrd Mat Min Sub Mat Gar Mat Fac Low Low Dat Pro Fac Low Low Zio Dee Pro Fac DSF Fac Ext Cet Arc Hub Res Tes Res Qua Sec Acc Maximum Alert Level 5 | . . . . . 2 2 1 . . . . 3 . . . . . . 1 1 3 2 1 5 4 3 3 3 5 5 Low Security (%) 44 | 100 100 100 . 100 39 54 98 . . . . . . . . . . 100 76 67 59 . 98 13 . 6 . . . . Level 1 15 | . . . . . 31 33 1 . . . . 16 . . . . . . 23 32 11 . 1 22 . 41 5 28 5 . Level 2 21 | . . . . . 28 12 . . . . . 78 . . . . . . . . 26 100 . 2 28 29 92 25 43 . Level 3 9 | . . . . . . . . . . . . 5 . . . . . . . . 2 . . 14 63 22 2 45 18 . Level 4 5 | . . . . . . . . . . . . . . . . . . . . . . . . 35 7 . . . 20 49 Level 5 3 | . . . . . . . . . . . . . . . . . . . . . . . . 12 . . . . 11 39 High Security . | . . . . . . . . . . . . . . . . . . . . . . . . . . . . . . 11 Max Security . | . . . . . . . . . . . . . . . . . . . . . . . . . . . . . . . Sterilizations 1 | . . . . . . . . . . . . . . . . . . . 1 . . . . . . . . . . . Peak Influence 2900 | 10 72 62 . 91 693 510 213 . . . . 728 . . . . . 46 292 391 971 586 226 2382 1244 825 728 844 1965 2900 Initial 1244 | . . . . . 18 337 103 . . . . 678 . . . . . 46 3 153 43 542 177 . 1244 342 452 347 381 1176 Average 420 | 1 10 12 . 16 304 210 114 . . . . 519 . . . . . 18 136 169 218 517 41 978 753 497 498 586 910 1776 Influence Increases 19497 | 60 104 217 160 314 695 942 533 5 25 . 215 1219 60 85 . . 290 32 289 758 1441 348 328 2916 178 1471 1106 948 2208 2550 Destroy 0b10 Robot/C 9020 | . 60 140 120 160 340 580 20 . 20 . . 280 60 80 . . 220 . 180 400 780 160 80 820 100 840 640 460 920 1560 Destroy 0b10 Robot/NC 990 | 60 15 20 . 30 . 90 75 5 5 . 5 60 . 5 . . . . 10 30 90 10 40 105 10 65 80 60 60 60 Destroy Leader 1494 | . 10 30 10 46 10 134 14 . . . . 78 . . . . 40 . 30 86 102 . . 146 12 108 140 72 154 272 Allied During Kill 756 | . . 6 . . 24 23 2 . . . . 8 . . . . . . . . 291 154 120 84 2 . . 8 18 16 Successful Hack 217 | . . . . 39 14 2 58 . . . . 4 . . . . . 5 . . 20 . . . 14 49 12 . . . Disable Machine 1350 | . 15 . . . . 45 . . . . . 15 . . . . . . . 90 30 . 60 600 . 165 30 75 165 60 Anti-Garrison Action 450 | . . . . . 300 . . . . . . . . . . . . . . . . . . 150 . . . . . . Destroy Structure 2385 | . 4 6 . 9 7 53 19 . . . . 24 . . . . . 12 54 122 98 24 28 846 40 154 189 258 141 297 Advance Influence 600 | . . . . . . . . . . . . 600 . . . . . . . . . . . . . . . . . . Partial Spotted 120 | . . . . 15 . . 60 . . . . 15 . . . . . 15 . . . . . 15 . . . . . . Lose Combat Pursuer 2115 | . . 15 30 15 . 15 285 . . . 210 135 . . . . 30 . 15 30 30 . . 150 . 90 15 15 750 285 Influence Decreases 11810 | 60 104 217 160 285 20 1050 544 62 25 . 90 770 302 157 . . 216 73 . 822 515 446 505 546 812 1009 940 616 628 836 Time Decay 8384 | 60 97 207 150 285 . 580 374 62 25 . 70 440 302 157 . . 206 73 . 522 398 246 505 424 362 709 470 616 518 526 Search Patrol Dispatched 300 | . . . . . . . . . . . . 300 . . . . . . . . . . . . . . . . . . Lost Part 287 | . 7 10 10 . . 20 . . . . 20 10 . . . . 10 . . . . . . 80 . . 20 . 70 30 Lost Ally 650 | . . . . . 20 . 20 . . . . 20 . . . . . . . . 28 200 . 42 . . . . 40 280 Purge Threat 2189 | . . . . . . 450 150 . . . . . . . . . . . . 300 89 . . . 450 300 450 . . . Squads Dispatched 122 | . 4 . . 2 . 4 8 . . . 1 8 . . . . . . 2 3 6 . . 8 2 10 5 8 17 34 Investigation 14 | . 2 . . . . 2 4 . . . . 2 . . . . . . . . 2 . . . 1 . 1 . . . Extermination 24 | . . . . . . . . . . . . 2 . . . . . . . 2 . . . 1 . 7 2 5 3 2 Reinforcement 31 | . 2 . . 1 . 2 2 . . . . . . . . . . . 2 1 3 . . 4 1 3 1 2 5 2 Assault 30 | . . . . . . . . . . . 1 1 . . . . . . . . 1 . . 3 . . 1 1 6 16 Garrison 14 | . . . . 1 . . 2 . . . . 3 . . . . . . . . . . . . . . . . . 8 Intercept 9 | . . . . . . . . . . . . . . . . . . . . . . . . . . . . . 3 6 Searches Triggered 2 | . . . . . . . . . . . . 2 . . . . . . . . . . . . . . . . . . Data Miner Redirects 8 | . . . . . . . . . . . . . . . . . . . . . 2 . . 3 . . . . 3 . Construction Impeded 6 | . . . . . . . . . . . . . . . . . . . . . 2 . . 1 . . . 1 . 2 Haulers Reinforced 4 | . . . . . . . 1 . . . . . . . . . . . . . . . . 1 . 1 . . 1 . Active Scanning Responses . | . . . . . . . . . . . . . . . . . . . . . . . . . . . . . . . Cargo Convoy Interrupts 1 | . . . . . . . 1 . . . . . . . . . . . . . . . . . . . . . . . Stealth | -11 -10 -10 -10 -8 -8 -8 -7 -7 -7 -7 -6 -6 -6 -6 -6 -6 -5 -5 -5 -4 -4 -4 -4 -4 -3 -3 -2 -2 -2 -1 --------- Run | Yrd Mat Min Sub Mat Gar Mat Fac Low Low Dat Pro Fac Low Low Zio Dee Pro Fac DSF Fac Ext Cet Arc Hub Res Tes Res Qua Sec Acc Distress Signals 34 | . . 1 . . . 3 2 . . . . . . . . . . . . 2 3 2 . 4 8 . . 2 3 4 Communications Jammed 128 | . . . . . . . . . . . . . . . . . . . . 44 30 . . 44 . 4 6 . . . Distress Signals 121 | . . . . . . . . . . . . . . . . . . . . 44 30 . . 38 . 4 5 . . . Times Spotted 867 | . 7 8 22 17 17 45 32 . 8 . 16 29 2 12 . 64 11 . 12 29 45 10 11 64 17 52 41 30 126 140 Peak Tracking Total 37 | . 5 3 3 3 4 5 6 . 5 . 9 4 2 5 . 37 5 . 5 5 7 5 1 10 4 5 8 5 22 28 Tactical Retreats 62 | . . 1 1 1 . 1 8 . . . 5 4 . . . . 1 . 1 2 2 . . 5 . 6 1 1 13 9 Traps | -11 -10 -10 -10 -8 -8 -8 -7 -7 -7 -7 -6 -6 -6 -6 -6 -6 -5 -5 -5 -4 -4 -4 -4 -4 -3 -3 -2 -2 -2 -1 ------- Run | Yrd Mat Min Sub Mat Gar Mat Fac Low Low Dat Pro Fac Low Low Zio Dee Pro Fac DSF Fac Ext Cet Arc Hub Res Tes Res Qua Sec Acc Traps Triggered 19 | . 1 . 1 1 . 1 2 . . . . 4 . . . . . 1 . 1 5 . . . . 2 . . . . Indirectly . | . . . . . . . . . . . . . . . . . . . . . . . . . . . . . . . Trap Hack Attempts . | . . . . . . . . . . . . . . . . . . . . . . . . . . . . . . . Triggered . | . . . . . . . . . . . . . . . . . . . . . . . . . . . . . . . Disarmed . | . . . . . . . . . . . . . . . . . . . . . . . . . . . . . . . Reprogrammed . | . . . . . . . . . . . . . . . . . . . . . . . . . . . . . . . Reused . | . . . . . . . . . . . . . . . . . . . . . . . . . . . . . . . Traps Reconfigurated 1 | . . . . . . . . . . . . . . . . . . . . . . . . 1 . . . . . . Traps Extracted . | . . . . . . . . . . . . . . . . . . . . . . . . . . . . . . . Installed . | . . . . . . . . . . . . . . . . . . . . . . . . . . . . . . . Triggered . | . . . . . . . . . . . . . . . . . . . . . . . . . . . . . . . Machines | -11 -10 -10 -10 -8 -8 -8 -7 -7 -7 -7 -6 -6 -6 -6 -6 -6 -5 -5 -5 -4 -4 -4 -4 -4 -3 -3 -2 -2 -2 -1 ---------- Run | Yrd Mat Min Sub Mat Gar Mat Fac Low Low Dat Pro Fac Low Low Zio Dee Pro Fac DSF Fac Ext Cet Arc Hub Res Tes Res Qua Sec Acc Machines Disabled 105 | . 1 . . . 2 3 . . . . . 1 1 . 3 4 . . . 6 3 . 4 41 . 12 2 6 12 4 Max in Single Turn 21 | . 1 . . . 1 1 . . . . . 1 1 . 1 1 . . . 1 1 . 1 21 . 1 1 1 1 1 Garrison Access 3 | . . . . . . . 2 . . . . . . . . . . . . . . . . 1 . . . . . . Garrison Relay 2 | . . . . . 2 . . . . . . . . . . . . . . . . . . . . . . . . . Phase Generator 1 | . . . . . 1 . . . . . . . . . . . . . . . . . . . . . . . . . Network Hub 3 | . . . . . . . . . . . . . . . . . . . . . . . . 3 . . . . . . Machines Repaired . | . . . . . . . . . . . . . . . . . . . . . . . . . . . . . . . Machines Dismantled 3 | . . . . . . . . . . . . . . . 3 . . . . . . . . . . . . . . . Machines Sabotaged . | . . . . . . . . . . . . . . . . . . . . . . . . . . . . . . . Overloaded Fab Kills . | . . . . . . . . . . . . . . . . . . . . . . . . . . . . . . . Hacking | -11 -10 -10 -10 -8 -8 -8 -7 -7 -7 -7 -6 -6 -6 -6 -6 -6 -5 -5 -5 -4 -4 -4 -4 -4 -3 -3 -2 -2 -2 -1 --------- Run | Yrd Mat Min Sub Mat Gar Mat Fac Low Low Dat Pro Fac Low Low Zio Dee Pro Fac DSF Fac Ext Cet Arc Hub Res Tes Res Qua Sec Acc Machines Accessed 73 | . 2 . . 7 3 12 18 . . 4 . 4 . 1 1 . . 1 . 3 5 . . . 2 4 4 2 . . Terminals 48 | . 1 . . 6 3 9 9 . . . . 2 . . . . . 1 . 2 5 . . . 2 4 2 2 . . Fabricators 6 | . . . . . . . 3 . . . . 1 . . . . . . . 1 . . . . . . 1 . . . Repair Stations 3 | . . . . . . 1 1 . . . . . . . . . . . . . . . . . . . 1 . . . Recycling Units 5 | . 1 . . . . 1 2 . . . . 1 . . . . . . . . . . . . . . . . . . Scanalyzers 2 | . . . . . . 1 1 . . . . . . . . . . . . . . . . . . . . . . . Garrison Access 3 | . . . . 1 . . 2 . . . . . . . . . . . . . . . . . . . . . . . Total Hacks 260 | . 5 . . 27 8 36 56 . . 33 . 10 . 1 2 . . 1 . 7 14 . . . 12 21 22 5 . . Successful 175 | . 2 . . 19 1 26 40 . . 33 . 3 . 1 2 . . 1 . 4 10 . . . 5 17 11 . . . Failed 85 | . 3 . . 8 7 10 16 . . . . 7 . . . . . . . 3 4 . . . 7 4 11 5 . . Catastrophic 14 | . 1 . . . 2 1 1 . . . . 2 . . . . . . . 1 1 . . . 1 . 1 3 . . Database Lockouts . | . . . . . . . . . . . . . . . . . . . . . . . . . . . . . . . Manual 129 | . 2 . . 19 . 23 26 . . . . 8 . . 2 . . . . 3 6 1 . . 12 10 12 5 . . Terminals 173 | . 2 . . 26 8 27 33 . . . . 6 . . . . . 1 . 5 14 . . . 12 21 13 5 . . Fabricators 14 | . . . . . . . 7 . . . . 2 . . . . . . . 2 . . . . . . 3 . . . Repair Stations 13 | . . . . . . 4 3 . . . . . . . . . . . . . . . . . . . 6 . . . Recycling Units 12 | . 3 . . . . 2 5 . . . . 2 . . . . . . . . . . . . . . . . . . Scanalyzers 6 | . . . . . . 3 3 . . . . . . . . . . . . . . . . . . . . . . . Garrison Access 6 | . . . . 1 . . 5 . . . . . . . . . . . . . . . . . . . . . . . Terminal Hacks 102 | . . . . 9 1 9 16 . . 33 . . . 1 2 . . 1 . 2 6 . . . 5 11 6 . . . Record 11 | . . . . . . . . . . 11 . . . . . . . . . . . . . . . . . . . . Part Schematic 18 | . . . . 1 . . 2 . . 13 . . . . 2 . . . . . . . . . . . . . . . Robot Schematic 6 | . . . . . . . . . . 6 . . . . . . . . . . . . . . . . . . . . Robot Analysis 3 | . . . . . . . 3 . . . . . . . . . . . . . . . . . . . . . . . Prototype ID Bank 9 | . . . . 3 . . 2 . . 3 . . . . . . . . . . 1 . . . . . . . . . Open Door 3 | . . . . . . . . . . . . . . 1 . . . . . . . . . . . 1 1 . . . Open DSF 1 | . . . . . . . . . . . . . . . . . . 1 . . . . . . . . . . . . Branch Access Points 4 | . . . . 1 . . 1 . . . . . . . . . . . . . . . . . 1 . 1 . . . Emergency Access Points 3 | . . . . . . . 2 . . . . . . . . . . . . . . . . . . 1 . . . . Terminal Index 4 | . . . . 1 . . 1 . . . . . . . . . . . . . 1 . . . . 1 . . . . Scanalyzer Index 1 | . . . . . . . . . . . . . . . . . . . . . . . . . . 1 . . . . Alert Level 6 | . . . . . . 1 1 . . . . . . . . . . . . . 1 . . . 1 1 1 . . . Unreport Threat 15 | . . . . . . 3 1 . . . . . . . . . . . . 2 1 . . . 3 2 3 . . . Locate Traps 5 | . . . . 1 . 1 . . . . . . . . . . . . . . 2 . . . . 1 . . . . Recall Extermination 1 | . . . . . . . . . . . . . . . . . . . . . . . . . . 1 . . . . Recall Reinforcements 1 | . . . . . . 1 . . . . . . . . . . . . . . . . . . . . . . . . Hauler Manifests 2 | . . . . . . 1 1 . . . . . . . . . . . . . . . . . . . . . . . Registered Components 1 | . . . . . . . . . . . . . . . . . . . . . . . . . . 1 . . . . Zone Layout 7 | . . . . 2 . 2 2 . . . . . . . . . . . . . . . . . . 1 . . . . Garrison Registry 1 | . . . . . 1 . . . . . . . . . . . . . . . . . . . . . . . . . Fabricator Hacks 6 | . . . . . . . 2 . . . . . . . . . . . . 2 . . . . . . 2 . . . Network Status 1 | . . . . . . . 1 . . . . . . . . . . . . . . . . . . . . . . . Load Schematic 3 | . . . . . . . 1 . . . . . . . . . . . . 1 . . . . . . 1 . . . Build 2 | . . . . . . . . . . . . . . . . . . . . 1 . . . . . . 1 . . . Repair Station Hacks 9 | . . . . . . 4 2 . . . . . . . . . . . . . . . . . . . 3 . . . Scan Component 5 | . . . . . . 2 1 . . . . . . . . . . . . . . . . . . . 2 . . . Repair 4 | . . . . . . 2 1 . . . . . . . . . . . . . . . . . . . 1 . . . Recycling Unit Hacks 3 | . 1 . . . . 1 1 . . . . . . . . . . . . . . . . . . . . . . . Retrieve Components 3 | . 1 . . . . 1 1 . . . . . . . . . . . . . . . . . . . . . . . Scanalyzer 6 | . . . . . . 3 3 . . . . . . . . . . . . . . . . . . . . . . . Insert Component 2 | . . . . . . 1 1 . . . . . . . . . . . . . . . . . . . . . . . Analyze 4 | . . . . . . 2 2 . . . . . . . . . . . . . . . . . . . . . . . Garrison Access Hacks 3 | . . . . 1 . . 2 . . . . . . . . . . . . . . . . . . . . . . . Unlock Access 1 | . . . . 1 . . . . . . . . . . . . . . . . . . . . . . . . . . Seal Access 2 | . . . . . . . 2 . . . . . . . . . . . . . . . . . . . . . . . Unauthorized Hacks 46 | . 1 . . 9 . 9 14 . . . . 3 . . . . . . . . 4 . . . . 6 . . . . Terminals 39 | . 1 . . 9 . 9 8 . . . . 2 . . . . . . . . 4 . . . . 6 . . . . Track 1 | . . . . . . . . . . . . . . . . . . . . . . . . . . 1 . . . . Assimilate 4 | . . . . 2 . 1 1 . . . . . . . . . . . . . . . . . . . . . . . Botnet 9 | . . . . 1 . 1 2 . . . . 1 . . . . . . . . 2 . . . . 2 . . . . Operators 3 | . . . . 1 . 1 . . . . . . . . . . . . . . . . . . . 1 . . . . Skim 22 | . 1 . . 5 . 6 5 . . . . 1 . . . . . . . . 2 . . . . 2 . . . . Fabricators 4 | . . . . . . . 4 . . . . . . . . . . . . . . . . . . . . . . . Liberate 2 | . . . . . . . 2 . . . . . . . . . . . . . . . . . . . . . . . Haulers 1 | . . . . . . . 1 . . . . . . . . . . . . . . . . . . . . . . . Recompile 1 | . . . . . . . 1 . . . . . . . . . . . . . . . . . . . . . . . Repair Stations . | . . . . . . . . . . . . . . . . . . . . . . . . . . . . . . . Recycling Units 3 | . . . . . . . 2 . . . . 1 . . . . . . . . . . . . . . . . . . Reject 1 | . . . . . . . . . . . . 1 . . . . . . . . . . . . . . . . . . Recyclers 1 | . . . . . . . 1 . . . . . . . . . . . . . . . . . . . . . . . Mask 1 | . . . . . . . 1 . . . . . . . . . . . . . . . . . . . . . . . Scanalyzers . | . . . . . . . . . . . . . . . . . . . . . . . . . . . . . . . Garrison Access . | . . . . . . . . . . . . . . . . . . . . . . . . . . . . . . . Data Cores Recovered 2 | . . . . . . . . . . . . . . . . . . . . 1 . . . . . . . 1 . . Used 1 | . . . . . . . . . . . . . . . . . . . . 1 . . . . . . . . . . Hacking Detections 57 | . 2 . . 6 2 12 16 . . . . 4 . . . . . 1 . 2 4 . . . 2 2 2 2 . . Full Trace Events 13 | . 1 . . . 2 1 3 . . . . 2 . . . . . . . . 2 . . . 1 . 1 . . . Feedback Events 2 | . . . . . 1 . . . . . . 1 . . . . . . . . . . . . . . . . . . Corruption 2 | . . . . . 1 . . . . . . 1 . . . . . . . . . . . . . . . . . . Feedback Blocked . | . . . . . . . . . . . . . . . . . . . . . . . . . . . . . . . Robot Schematics Acquired 8 | . . . . . . . . . . 6 . . . . . . . . . . . . . . . . . . 2 . Robots Built . | . . . . . . . . . . . . . . . . . . . . . . . . . . . . . . . Authchips . | . . . . . . . . . . . . . . . . . . . . . . . . . . . . . . . Time . | . . . . . . . . . . . . . . . . . . . . . . . . . . . . . . . Total Robot Build Rating . | . . . . . . . . . . . . . . . . . . . . . . . . . . . . . . . Part Schematics Acquired 23 | . . . . 1 . 1 3 . . 13 . . . . 2 . . . . . . . . . . . . . 3 . Parts Built 2 | . . . . . . . . . . . . . . . . . . . . 1 . . . . . . 1 . . . Authchips 1 | . . . . . . . . . . . . . . . . . . . . 1 . . . . . . . . . . Time 168 | . . . . . . . . . . . . . . . . . . . . 84 . . . . . . 84 . . . Total Part Build Rating 12 | . . . . . . . . . . . . . . . . . . . . 6 . . . . . . 6 . . . Parts Repaired 4 | . . . . . . 2 1 . . . . . . . . . . . . . . . . . . . 1 . . . Time 248 | . . . . . . 52 60 . . . . . . . . . . . . . . . . . . . 136 . . . Parts Recycled . | . . . . . . . . . . . . . . . . . . . . . . . . . . . . . . . Recycled Matter . | . . . . . . . . . . . . . . . . . . . . . . . . . . . . . . . Retrieved Matter . | . . . . . . . . . . . . . . . . . . . . . . . . . . . . . . . Retrieved Components 15 | . 5 . . . . 9 1 . . . . . . . . . . . . . . . . . . . . . . . Parts Scanalyzed 2 | . . . . . . 1 1 . . . . . . . . . . . . . . . . . . . . . . . Part Schematics Acquired 2 | . . . . . . 1 1 . . . . . . . . . . . . . . . . . . . . . . . Parts Damaged . | . . . . . . . . . . . . . . . . . . . . . . . . . . . . . . . Bothacking | -11 -10 -10 -10 -8 -8 -8 -7 -7 -7 -7 -6 -6 -6 -6 -6 -6 -5 -5 -5 -4 -4 -4 -4 -4 -3 -3 -2 -2 -2 -1 ------------ Run | Yrd Mat Min Sub Mat Gar Mat Fac Low Low Dat Pro Fac Low Low Zio Dee Pro Fac DSF Fac Ext Cet Arc Hub Res Tes Res Qua Sec Acc Used RIF Installer . | . . . . . . . . . . . . . . . . . . . . . . . . . . . . . . . Robots Hacked 2 | . . . . . . 1 . . . . . . . . . . . . . . . . 1 . . . . . . . Non-combat 2 | . . . . . . 1 . . . . . . . . . . . . . . . . 1 . . . . . . . Combat . | . . . . . . . . . . . . . . . . . . . . . . . . . . . . . . . Robot Hacks Applied 2 | . . . . . . 1 . . . . . . . . . . . . . . . . 1 . . . . . . . check_alert 2 | . . . . . . 1 . . . . . . . . . . . . . . . . 1 . . . . . . . Relay Couplers Released 13 | . . . . . 7 . . . . . . . . . . . . . . . . . . 3 . . 3 . . . Machine Destruction 10 | . . . . . 7 . . . . . . . . . . . . . . . . . . 3 . . . . . . Programmers 3 | . . . . . . . . . . . . . . . . . . . . . . . . . . . 3 . . . Fabnet Peak Effective % . | . . . . . . . . . . . . . . . . . . . . . . . . . . . . . . . Robots Rewired 17 | . . . . . 3 . 1 . 2 . . 1 . 2 . . . . . . 8 . . . . . . . . . Allies Hacked . | . . . . . . . . . . . . . . . . . . . . . . . . . . . . . . . Hacks Repelled . | . . . . . . . . . . . . . . . . . . . . . . . . . . . . . . . Allies | -11 -10 -10 -10 -8 -8 -8 -7 -7 -7 -7 -6 -6 -6 -6 -6 -6 -5 -5 -5 -4 -4 -4 -4 -4 -3 -3 -2 -2 -2 -1 -------- Run | Yrd Mat Min Sub Mat Gar Mat Fac Low Low Dat Pro Fac Low Low Zio Dee Pro Fac DSF Fac Ext Cet Arc Hub Res Tes Res Qua Sec Acc Total Allies 53 | . . 2 . . 3 . 4 . 2 . . 1 . 2 2 1 . . . . 16 5 . . . . . . . 15 Largest Group 15 | . . 2 2 . 3 2 3 . 2 2 1 1 . 2 4 4 . . . . 13 12 4 4 . . . . . 15 Highest-Rated Group 669 | . . 47 51 . 65 40 90 . 52 52 20 25 . 62 254 254 . . . . 669 624 384 384 . . . . . 209 Highest-Rated Ally 159 | . . 31 31 . 25 20 30 . 32 32 20 25 . 31 96 99 . . . . 159 159 96 96 . . . . . 15 Warlord Squad Rendezvous 1 | . . . . . . . . . . . . 1 . . . . . . . . . . . . . . . . . . Geek 1 | . . . . . . . . . . . . 1 . . . . . . . . . . . . . . . . . . Total Orders 19 | . . . . . . . . . . . . . . . . . . . . . . . 2 . 3 . 2 8 4 . STAY 1 | . . . . . . . . . . . . . . . . . . . . . . . 1 . . . . . . . FOLLOW 2 | . . . . . . . . . . . . . . . . . . . . . . . 1 . . . . 1 . . EXPLORE 5 | . . . . . . . . . . . . . . . . . . . . . . . . . 1 . 1 2 1 . RETURN 11 | . . . . . . . . . . . . . . . . . . . . . . . . . 2 . 1 5 3 . Ally Attacks 410 | . . 4 12 . 6 10 3 . . . 3 12 . 5 . 87 . . . . 60 65 4 30 6 . . 30 38 35 Total Damage 10735 | . . 41 249 . 129 367 67 . . . 48 203 . 82 . 2441 . . . . 2090 1905 140 989 93 . . 714 505 672 Kills 65 | . . 2 1 . 1 1 1 . . . . 1 . . . 19 . . . . 16 10 1 5 1 . . 2 2 2 Allies Corrupted . | . . . . . . . . . . . . . . . . . . . . . . . . . . . . . . . Allies Melted 1 | . . . . . . . . . . . . . . . . . . . . . . . . 1 . . . . . . Intel | -11 -10 -10 -10 -8 -8 -8 -7 -7 -7 -7 -6 -6 -6 -6 -6 -6 -5 -5 -5 -4 -4 -4 -4 -4 -3 -3 -2 -2 -2 -1 ------- Run | Yrd Mat Min Sub Mat Gar Mat Fac Low Low Dat Pro Fac Low Low Zio Dee Pro Fac DSF Fac Ext Cet Arc Hub Res Tes Res Qua Sec Acc Active Infowar (turns) 14988 | 84 709 1544 250 20 . 31 667 173 429 24 103 547 . 760 . 1514 966 175 214 1297 385 . 2231 609 177 1513 566 . . . Sensors 1405 | . . . . . . 15 661 173 429 24 103 . . . . . . . . . . . . . . . . . . . Terrain 322 | . 216 106 . . . . . . . . . . . . . . . . . . . . . . . . . . . . Seismic 6991 | 84 493 1438 250 20 . 16 . . . . . 547 . 760 . 1514 966 175 214 514 . . . . . . . . . . Cloaking 762 | . . . . . . . . . . . . . . . . . . . . 674 . . . 88 . . . . . . Jamming 7062 | . . . . . . . . . . . . . . . . . . 119 208 1257 385 . 2231 606 177 1513 566 . . . ECM 6 | . . . . . . . 6 . . . . . . . . . . . . . . . . . . . . . . . Robot Analysis Total 3 | . . . . . . . 3 . . . . . . . . . . . . . . . . . . . . . . . Derelict Logs Recovered 13 | . . 2 3 . . . . . 3 . . . 1 2 1 . 1 . . . . . . . . . . . . . Drone Launches 16 | . . . . . . . . . . . . . . . . . . . . . . . . . 4 . 2 3 7 . Drone Recoveries 14 | . . . . . . . . . . . . . . . . . . . . . . . . . 4 . 2 3 5 . Exploration | -11 -10 -10 -10 -8 -8 -8 -7 -7 -7 -7 -6 -6 -6 -6 -6 -6 -5 -5 -5 -4 -4 -4 -4 -4 -3 -3 -2 -2 -2 -1 ------------- Run | Yrd Mat Min Sub Mat Gar Mat Fac Low Low Dat Pro Fac Low Low Zio Dee Pro Fac DSF Fac Ext Cet Arc Hub Res Tes Res Qua Sec Acc Turns Passed 46672 | 379 752 1544 5506 1589 1486 1787 863 176 429 24 158 1093 676 2059 2453 4523 1994 184 214 1449 2063 536 3261 1139 830 3168 1190 2059 1435 1653 Spaces Moved 21944 | 174 242 534 2066 569 594 812 2229 618 1019 77 267 1256 363 1084 1394 1891 457 84 65 470 711 173 265 316 237 930 479 583 953 1032 Core 71 | 3 . . . . . . . . . . . . . . . . . . . . . . 68 . . . . . . . Treads 4026 | 171 242 534 1001 569 594 771 . . . . . 50 26 7 . 27 . . . . 30 4 . . . . . . . . Legs 7811 | . . . 1001 . . . . . . . . . . . . 1087 457 84 65 470 681 169 197 316 237 930 479 583 431 624 Wheels 4051 | . . . 64 . . . . . . . . 402 337 1077 1394 777 . . . . . . . . . . . . . . Hover . | . . . . . . . . . . . . . . . . . . . . . . . . . . . . . . . Flight 5055 | . . . . . . 41 2229 618 1019 77 267 804 . . . . . . . . . . . . . . . . . . Fastest Speed 23 | 50 160 240 140 160 160 26 23 23 23 23 23 23 160 160 160 160 183 183 183 210 210 210 140 174 176 123 175 170 173 170 Average Speed 158 | 158 176 240 208 184 160 154 23 23 23 23 23 67 175 160 167 180 183 198 196 238 231 240 963 200 236 205 175 202 189 171 Slowest Speed 3100 | 160 240 240 330 260 160 162 92 23 23 23 23 240 240 240 175 240 183 240 210 240 326 320 3100 226 275 285 176 220 219 173 Overloaded Moves . | . . . . . . . . . . . . . . . . . . . . . . . . . . . . . . . Propulsion Burnouts . | . . . . . . . . . . . . . . . . . . . . . . . . . . . . . . . Robots Hopped 13 | . . . . . . . 13 . . . . . . . . . . . . . . . . . . . . . . . Cave-ins Triggered 1 | . . . . . . . . . . . 1 . . . . . . . . . . . . . . . . . . . Microwarps 69 | . . . . . . . . . . . . . . . . . . . . . . . . . . . . . 47 22 Exploration Rate (%) 55 | 7 34 83 78 48 67 71 55 68 95 68 43 26 55 79 86 91 52 5 72 16 87 56 86 45 9 87 18 54 43 23 Regions Visited 30 Branch Regions 18 Pre-discovered Areas 15 | . . 1 3 2 . 2 1 1 . 1 . . . 2 2 . . . . . . . . . . . . . . . Known Exits Taken 16 | . . . . 1 . 1 1 1 1 1 1 1 1 . 1 . 1 1 . 1 . . . 1 1 . 1 . . . Unknown Exits Taken 12 | 1 1 1 1 . . . . . . . . . . 1 . 1 . . . . 1 1 1 . . 1 . 1 1 . Scrap Searched 22 | . . 2 8 . . . . . 2 . 3 . 2 3 2 . . . . . . . . . . . . . . . Spaces Dug 247 | . 2 . . . . 6 19 3 . . 2 9 2 2 . 14 12 6 8 12 1 . 1 16 4 13 16 84 9 6 Terrain Destroyed 1525 | . 4 6 10 6 7 50 19 14 . . 2 21 9 25 . 54 38 6 30 58 69 12 17 652 17 75 67 123 40 94 Melee 28 | . . . . . . . 18 3 . . 2 5 . . . . . . . . . . . . . . . . . . Projectile 609 | . 2 . 10 6 . 18 1 . . . . 6 5 25 . 32 28 6 4 58 37 12 17 83 17 61 53 43 32 53 AOE 887 | . 2 6 . . 7 32 . 11 . . . 10 4 . . 22 10 . 26 . 32 . . 569 . 14 14 80 7 41 Terrain Rammed . | . . . . . . . . . . . . . . . . . . . . . . . . . . . . . . . Walls Destroyed . | . . . . . . . . . . . . . . . . . . . . . . . . . . . . . . . Machines Disabled . | . . . . . . . . . . . . . . . . . . . . . . . . . . . . . . . Actions | -11 -10 -10 -10 -8 -8 -8 -7 -7 -7 -7 -6 -6 -6 -6 -6 -6 -5 -5 -5 -4 -4 -4 -4 -4 -3 -3 -2 -2 -2 -1 --------- Run | Yrd Mat Min Sub Mat Gar Mat Fac Low Low Dat Pro Fac Low Low Zio Dee Pro Fac DSF Fac Ext Cet Arc Hub Res Tes Res Qua Sec Acc Total 31579 | 218 540 744 3148 1036 1051 1179 2484 645 1210 82 350 1428 384 1330 1460 2873 1569 95 119 690 986 271 929 582 481 1940 656 1351 810 938 Wait 6920 | . 271 166 856 364 324 140 97 11 164 6 74 18 1 130 30 727 1075 . 12 90 51 51 563 70 181 686 41 645 42 34 Move 21027 | 173 241 533 2065 568 593 811 2203 617 1018 76 266 1255 362 1083 1393 1890 456 83 64 469 710 172 264 315 236 929 478 582 477 645 Hop 12 | . . . . . . . 12 . . . . . . . . . . . . . . . . . . . . . . . Pick Up 364 | 6 8 10 46 17 14 37 13 3 . . 1 26 2 7 2 50 . 1 6 18 13 6 23 5 8 9 8 5 15 5 Fast Attach 236 | 7 . 1 5 8 5 10 28 2 . . . 8 2 7 . 26 . 1 3 8 2 7 9 14 7 36 3 5 20 12 Attach 159 | . 1 1 17 1 8 7 4 . . . 1 8 . 2 . 9 1 . . 9 4 2 3 2 7 13 4 8 28 19 Detach 105 | . . . 1 1 . . 1 . . . . 8 . . . 5 2 . 1 . 4 . . 2 1 22 4 8 23 22 Swap 235 | 1 5 1 15 13 8 30 8 2 1 . . 12 5 9 6 24 3 2 4 8 7 2 1 13 4 11 8 10 8 14 Drop 669 | . 2 3 54 23 22 46 39 5 2 . . 21 3 17 2 68 6 2 10 29 20 18 39 30 21 75 17 28 33 34 Fire 1450 | 31 12 27 80 39 45 89 5 1 . . . 19 9 37 . 72 26 6 19 58 78 13 26 131 16 156 91 59 154 151 Melee 97 | . . . . . . 1 49 4 2 . 8 31 . . . 1 . . . . . . 1 . . . . . . . Ram . | . . . . . . . . . . . . . . . . . . . . . . . . . . . . . . . Kick 21 | . . . . . . . . . . . . . . . . . . . . 1 4 . . . . 3 2 1 8 2 Crush 10 | . . 2 . . . 8 . . . . . . . . . . . . . . . . . . . . . . . . Escape Stasis 48 | . . . . . . . 18 . . . . 18 . . . . . . . . 12 . . . . . . . . . Rewire 184 | . . . . . 31 . 6 . 22 . . 3 . 38 . 1 . . . . 81 . . . . . . . 2 . Trap . | . . . . . . . . . . . . . . . . . . . . . . . . . . . . . . . Miscellaneous 42 | . . . 9 2 1 . 1 . 1 . . 1 . . 27 . . . . . . . . . . . . . . . Route ------- -11/Scrapyard -10/Materials -10/Mines (discovered 3 exits: [*Mat] / [*Exi] / [*Sub]) -10/Subcaves (discovered 2 exits: *Mat x2) -8/Materials (discovered 2 exits: Fac / Gar) -8/Garrison (discovered 4 exits: *Mat x4) -8/Materials (discovered 2 exits: *Fac x2) -7/Factory (discovered 5 exits: *Fac x2 / *Sto / *Low x2) -7/Lower Caves -7/Lower Caves (discovered 2 exits: *Fac / *Dat) -7/Data Miner -6/Proximity Caves -6/Factory (discovered 2 exits: *Fac / *Low) -6/Lower Caves -6/Lower Caves (discovered 2 exits: *Fac / *Zio) -6/Zion (discovered 2 exits: *Dee / [*Pro]) -6/Deep Caves -5/Proximity Caves -5/Factory (discovered 2 exits: Fac / DSF) -5/DSF -4/Factory (discovered 2 exits: *Ext x2) -4/Extension (discovered 3 exits: *Res x2 / *Cet) -4/Cetus (discovered 2 exits: *Res / [*Arc]) -4/Archives (discovered 3 exits: *Res / *Hub x2) -4/Hub_04(d) (discovered 3 exits: *Res x3) -3/Research (discovered 2 exits: *Tes x2) -3/Testing -2/Research (discovered 3 exits: [*Acc] / *Qua x2) -2/Quarantine -2/Section 7 -1/Access History --------- Turn | Location | Event 2 | -11/Scrapyard | Discovered new exit (range 16) 380 | -11/Scrapyard | Entered Materials 381 | -10/Materials | Build established: Mutant 1048 | -10/Materials | Discovered new exit (range 9) 1132 | -10/Materials | Entered Mines 1144 | -10/Mines | Deemed a non-threat by the Exiles lab entrance 1147 | -10/Mines | Discovered new exit (range 5) 1198 | -10/Mines | Assembled infested the area 1329 | -10/Mines | Met 8R-AWN 1430 | -10/Mines | Discovered new exit (range 9) 1860 | -10/Mines | Learned Materials security intel 2124 | -10/Mines | Discovered new exit (range 12) 2676 | -10/Mines | Entered Subcaves 2676 | -10/Subcaves | Accompanied by 2 allies 2681 | -10/Subcaves | Led the pair of lost Derelicts to an unsafe place 2727 | -10/Subcaves | A swath of the cavern ceiling suddenly collapsed 2834 | -10/Subcaves | Learned location of Mines (-9) 3056 | -10/Subcaves | Core integrity fell below 50% 3095 | -10/Subcaves | Discovered new exit (range 10) 3951 | -10/Subcaves | Shifting Twisted Machinery released Barrage Gun 4179 | -10/Subcaves | Discovered new exit (range 3) 4788 | -10/Subcaves | Shifting Twisted Machinery released Mak. Light Armor Plating 5534 | -10/Subcaves | Ambushed by angry Subdweller bent on revenge 5538 | -10/Subcaves | Ambushed by Subdweller buried in earth 5893 | -10/Subcaves | Build established: Subdweller-Mutant 7440 | -10/Subcaves | Shifting Twisted Machinery released Scrap Shield 7447 | -10/Subcaves | Shifting Twisted Machinery released Sub. Power Source 7491 | -10/Subcaves | Core integrity fell below 20% 7554 | -10/Subcaves | Disturbed a concealed Subdweller 8182 | -10/Subcaves | Entered Materials 8182 | -8/Materials | Evolved 4 slots: Propulsion x2, Utility x2 8798 | -8/Materials | Discovered new exit (range 14) 8904 | -8/Materials | Build established: Scavenger-Mutant 9442 | -8/Materials | Learned 8 Factory zone layouts 9497 | -8/Materials | Learned location of 1 exit from Storage 9575 | -8/Materials | Learned location of Zion (-6) 9598 | -8/Materials | Learned Storage emergency access door positions 9612 | -8/Materials | Learned 2 Lower Caves zone layouts 9676 | -8/Materials | Learned 4 Recycling zone layouts 9690 | -8/Materials | Garrison activated, responded to threat 9766 | -8/Materials | Identified exit to Garrison 9771 | -8/Materials | Entered Garrison 9837 | -8/Garrison | Triggered checkpoint 9928 | -8/Garrison | Garrison Relay disabled 9989 | -8/Garrison | Triggered checkpoint 10603 | -8/Garrison | Phase Generator disabled 10608 | -8/Garrison | Met a derelict Sapper fleeing the area 10617 | -8/Garrison | Discovered new exit (range 13) 10679 | -8/Garrison | Triggered checkpoint 10726 | -8/Garrison | Discovered new exit (range 14) 10750 | -8/Garrison | Discovered new exit (range 45) 10750 | -8/Garrison | Discovered new exit (range 49) 10750 | -8/Garrison | Discovered new exit (range 12) 10750 | -8/Garrison | Discovered new exit (range 18) 10771 | -8/Garrison | Triggered checkpoint 10828 | -8/Garrison | Garrison Relay disabled 11257 | -8/Garrison | Entered Materials 11257 | -8/Materials | Accompanied by 2 allies 11931 | -8/Materials | Learned location of 1 exit from Extension 12007 | -8/Materials | Learned 2 Storage zone layouts 12072 | -8/Materials | Learned 4 Recycling zone layouts 12128 | -8/Materials | Learned location of 1 exit from Extension 12172 | -8/Materials | Learned location of Extension (-4) 12206 | -8/Materials | Learned 4 Lower Caves zone layouts 12249 | -8/Materials | Learned location of Recycling (-7) 12302 | -8/Materials | Identified exit to Factory 12661 | -8/Materials | Repaired Hcp. Storage Unit 12748 | -8/Materials | Repaired Lgt. Treads 12955 | -8/Materials | Discovered exit to Factory (range 12) 13044 | -8/Materials | Entered Factory 13044 | -7/Factory | Evolved 2 slots: Propulsion x1, Utility x1 13045 | -7/Factory | Identified exit to Storage 13236 | -7/Factory | Repaired Imp. VTOL Module 13504 | -7/Factory | Identified exit to Lower Caves 13576 | -7/Factory | Garrison activated, responded to threat 13596 | -7/Factory | Discovered new exit (range 13) 13598 | -7/Factory | Identified exit to Factory 13696 | -7/Factory | Discovered exit to Factory (range 15) 13713 | -7/Factory | Build established: Hacker-Sprinter 13729 | -7/Factory | Cargo convoy interrupted 13800 | -7/Factory | Learned location of 1 exit from Proximity Caves 13831 | -7/Factory | Garrison activated, responded to threat 13849 | -7/Factory | Learned Extension emergency access door positions 13907 | -7/Factory | Entered Lower Caves 13913 | -7/Lower Caves | Met a Warlord Commander 13914 | -7/Lower Caves | Learned location of Warlord (-5) 13915 | -7/Lower Caves | Warlord Commander delivered Encrypted Comm Array 13920 | -7/Lower Caves | Found Encrypted Comm Array 14029 | -7/Lower Caves | Build established: Sprinter 14058 | -7/Lower Caves | Discovered new exit (range 4) 14059 | -7/Lower Caves | Identified exit to Lower Caves 14083 | -7/Lower Caves | Entered another Lower Caves area 14092 | -7/Lower Caves | Discovered exit to Factory (range 5) 14104 | -7/Lower Caves | Activated DRS Beacon 14197 | -7/Lower Caves | Attracted the attention of an 0b10 checkpoint 14266 | -7/Lower Caves | Learned location of 1 exit from Proximity Caves 14321 | -7/Lower Caves | Learned Factory security intel 14361 | -7/Lower Caves | Attracted the attention of an 0b10 outpost 14423 | -7/Lower Caves | Discovered new exit (range 5) 14463 | -7/Lower Caves | Identified exit to Data Miner 14512 | -7/Lower Caves | Entered Data Miner 14512 | -7/Data Miner | Accompanied by 2 allies 14512 | -7/Data Miner | Discovered new exit (range 6) 14517 | -7/Data Miner | Met Data Miner 14521 | -7/Data Miner | Learned location of Section 7 (-2) 14521 | -7/Data Miner | Acquired the access code to Warlord's prototype stash 14525 | -7/Data Miner | Received God Mode back door access code from Data Miner 14530 | -7/Data Miner | Identified exit to Proximity Caves 14536 | -7/Data Miner | Entered Proximity Caves 14536 | -6/Proximity Caves | Accompanied by 2 allies 14538 | -6/Proximity Caves | Attracted the attention of an 0b10 outpost 14608 | -6/Proximity Caves | Spotter reported a threat 14609 | -6/Proximity Caves | Spotter reported a threat 14639 | -6/Proximity Caves | Crushed by falling debris 14660 | -6/Proximity Caves | Spotted B-75 Beast 14661 | -6/Proximity Caves | Spotter reported a threat 14662 | -6/Proximity Caves | Spotter reported a threat 14694 | -6/Proximity Caves | Entered Factory 14694 | -6/Factory | Evolved 2 slots: Power x1, Utility x1 14779 | -6/Factory | Discovered new exit (range 12) 14783 | -6/Factory | Identified exit to Lower Caves 14793 | -6/Factory | Joined by Warlord Geek squad 14897 | -6/Factory | Garrison activated, responded to threat 15044 | -6/Factory | Search patrols dispatched 15282 | -6/Factory | Discovered new exit (range 15) 15288 | -6/Factory | Build established: Mutant 15292 | -6/Factory | Found Powered Armor 15297 | -6/Factory | Found Powered Armor 15301 | -6/Factory | Found Powered Armor 15394 | -6/Factory | Search patrols dispatched 15609 | -6/Factory | Destroyed 8 combat bots 15744 | -6/Factory | First assault squad dispatched 15787 | -6/Factory | Entered Lower Caves 15808 | -6/Lower Caves | Found Alien Artifact 15808 | -6/Lower Caves | Identified Dimensional Node Initializer 15808 | -6/Lower Caves | Initialized slip node 15948 | -6/Lower Caves | Attracted the attention of an 0b10 checkpoint 16025 | -6/Lower Caves | Learned 4 Factory zone layouts 16058 | -6/Lower Caves | Discovered new exit (range 13) 16091 | -6/Lower Caves | Identified exit to Lower Caves 16181 | -6/Lower Caves | Encountered a Warlord checkpoint 16463 | -6/Lower Caves | Entered another Lower Caves area 16484 | -6/Lower Caves | Found Prototype Device 16487 | -6/Lower Caves | Identified Heart of Steel 16733 | -6/Lower Caves | Discovered new exit (range 10) 16914 | -6/Lower Caves | Encountered a Warlord checkpoint 17203 | -6/Lower Caves | Attracted the attention of an 0b10 checkpoint 17779 | -6/Lower Caves | Attacked by a faux Warlord 18495 | -6/Lower Caves | Discovered new exit (range 8) 18522 | -6/Lower Caves | Entered Zion 18522 | -6/Zion | Accompanied by 2 allies 18583 | -6/Zion | System corruption cleaned by Quarantine Array 18673 | -6/Zion | Given A8's code to call for help 19046 | -6/Zion | Identified exit to Deep Caves 19097 | -6/Zion | Enhanced Grunt warped into view, answering call for help 19099 | -6/Zion | Enhanced Grunt warped into view, answering call for help 19164 | -6/Zion | Met Imprinter 19236 | -6/Zion | Visited the Megawrench Repair Shop 19236 | -6/Zion | Megawrench repaired 11 parts 19323 | -6/Zion | Received a visual enhancement algorithm 19811 | -6/Zion | Discovered new exit (range 12) 20203 | -6/Zion | Ran a visual enhancement algorithm 20964 | -6/Zion | Saw the warning signs outside the Deep Caves entrance 20975 | -6/Zion | Entered Deep Caves 20975 | -6/Deep Caves | Accompanied by 4 allies 21154 | -6/Deep Caves | Attacked by Z-Imprinter 21182 | -6/Deep Caves | Destroyed Z-Imprinter 21278 | -6/Deep Caves | Heart of Steel transformed into Warbot 21369 | -6/Deep Caves | Z-Facility disabled 22005 | -6/Deep Caves | Found Prototype Protection 22005 | -6/Deep Caves | Identified Zio. Weapon Casing 22096 | -6/Deep Caves | Found Prototype Protection 22096 | -6/Deep Caves | Identified Zio. Heavy Carapace 22530 | -6/Deep Caves | Spotted AG-69203 22561 | -6/Deep Caves | Destroyed AG-69203 22610 | -6/Deep Caves | Spotted AG-23514 22625 | -6/Deep Caves | Destroyed AG-23514 22677 | -6/Deep Caves | Triggered Deep Caves wall 22677 | -6/Deep Caves | Spotted AS-06618 22677 | -6/Deep Caves | Spotted AS-71218 22685 | -6/Deep Caves | Destroyed AS-71218 22697 | -6/Deep Caves | Destroyed AS-06618 22727 | -6/Deep Caves | Destroyed 37 combat bots 22750 | -6/Deep Caves | Exposed GOLEM chamber 22754 | -6/Deep Caves | Found GOLEM Unit 23208 | -6/Deep Caves | Build established: Golem 23369 | -6/Deep Caves | Found Prototype Device 23370 | -6/Deep Caves | Identified Trap Reconfigurator 23499 | -6/Deep Caves | Found GOLEM Unit 23506 | -6/Deep Caves | Found GOLEM Unit 23709 | -6/Deep Caves | Discovered new exit (range 7) 23983 | -6/Deep Caves | Found Zio. Weapon Casing 24001 | -6/Deep Caves | Found Zio. Weapon Casing 24003 | -6/Deep Caves | Found Zio. Weapon Casing 25498 | -6/Deep Caves | Entered Proximity Caves 25499 | -5/Proximity Caves | Identified exit to Factory 25628 | -5/Proximity Caves | Received a Behemoth hack from an annoying Tinkerer 26467 | -5/Proximity Caves | Core integrity fell below 50% 26664 | -5/Proximity Caves | Learned Factory stockpile data 26664 | -5/Proximity Caves | Spotted B-75 Beast 26790 | -5/Proximity Caves | Destroyed B-75 Beast 27492 | -5/Proximity Caves | Entered Factory 27492 | -5/Factory | Evolved 2 slots: Utility x1, Weapon x1 27493 | -5/Factory | Identified exit to Factory 27676 | -5/Factory | Identified exit to DSF 27676 | -5/Factory | Entered DSF 27734 | -5/DSF | Additional patrols routed to DSF 27856 | -5/DSF | Sterilization system engaged 27859 | -5/DSF | Discovered exit to Factory (range 16) 27876 | -5/DSF | Ambient heat levels rising (+10) 27890 | -5/DSF | Entered Factory 27890 | -4/Factory | Evolved 2 slots: Utility x2 27891 | -4/Factory | Identified exit to Extension 28164 | -4/Factory | Fabricated Combat Drone Bay? 28464 | -4/Factory | Spotted B-86 Titan 28509 | -4/Factory | Destroyed B-86 Titan 28869 | -4/Factory | Build established: Infiltrator-Golem 29339 | -4/Factory | Entered Extension 29340 | -4/Extension | Identified exit to Research 29555 | -4/Extension | Build established: Hacker-Golem 29594 | -4/Extension | Rescued a captive Derelict 29951 | -4/Extension | Rescued a captive Derelict 30380 | -4/Extension | Spotted B-86 Titan 30414 | -4/Extension | Destroyed B-86 Titan 30432 | -4/Extension | Spotted B-86 Titan 30449 | -4/Extension | Destroyed B-86 Titan 30489 | -4/Extension | Disrupted transfer network 30604 | -4/Extension | Destroyed 11 combat bots 30615 | -4/Extension | Rescued A7 30799 | -4/Extension | Rescued a captive Derelict 30850 | -4/Extension | Build established: Scavenger-Golem 30899 | -4/Extension | Incoming investigation squad redirected 31117 | -4/Extension | Rescued a captive Derelict 31213 | -4/Extension | Rescued a captive Derelict 31278 | -4/Extension | Rescued a captive Derelict 31280 | -4/Extension | Rescued a captive Derelict 31334 | -4/Extension | Build established: Commander-Golem 31337 | -4/Extension | Discovered new exit (range 6) 31339 | -4/Extension | First assault squad dispatched 31360 | -4/Extension | Incoming assault squad redirected 31402 | -4/Extension | Entered Cetus 31402 | -4/Cetus | Accompanied by 12 allies (A7) 31407 | -4/Cetus | Acquired a Cetus Manufacturing Module code from A7 31415 | -4/Cetus | Spotted Cetus Guard 31417 | -4/Cetus | Spotted Cetus Guard 31423 | -4/Cetus | Spotted Cetus Guard 31428 | -4/Cetus | Spotted Cetus Guard 31429 | -4/Cetus | Allies destroyed Cetus Guard 31439 | -4/Cetus | Allies destroyed Cetus Guard 31449 | -4/Cetus | Allies destroyed Cetus Guard 31451 | -4/Cetus | Allies destroyed Cetus Guard 31479 | -4/Cetus | Lost 5 allies 31564 | -4/Cetus | Started Cetus Manufacturing Module 31589 | -4/Cetus | Manufactured an Enhanced Grunt 31589 | -4/Cetus | Discovered new exit (range 15) 31614 | -4/Cetus | Manufactured an Enhanced Grunt 31629 | -4/Cetus | Spotted Cetus Guard 31629 | -4/Cetus | Spotted Cetus Guard 31630 | -4/Cetus | Spotted Cetus Guard 31631 | -4/Cetus | Spotted Cetus Guard 31634 | -4/Cetus | Allies destroyed Cetus Guard 31639 | -4/Cetus | Manufactured an Enhanced Grunt 31643 | -4/Cetus | Allies destroyed Cetus Guard 31658 | -4/Cetus | Allies destroyed Cetus Guard 31664 | -4/Cetus | Manufactured an Enhanced Grunt 31665 | -4/Cetus | Allies destroyed Cetus Guard 31689 | -4/Cetus | Manufactured an Enhanced Grunt 31701 | -4/Cetus | Lost 6 allies 31706 | -4/Cetus | Discovered exit to Research (range 16) 31731 | -4/Cetus | Met Revision 17 31885 | -4/Cetus | Murdered A7 31900 | -4/Cetus | Extracted ID and sensor layout for unrecognized location from A7's data core 31938 | -4/Cetus | Entered Archives 31938 | -4/Archives | Accompanied by 4 allies 32010 | -4/Archives | Build established: Scavenger-Golem 33054 | -4/Archives | Build established: Commander-Golem 33064 | -4/Archives | Discovered new exit (range 16) 33432 | -4/Archives | Discovered exit to Research (range 14) 34455 | -4/Archives | Discovered new exit (range 15) 35199 | -4/Archives | Entered Hub_04(d) 35199 | -4/Hub_04(d) | Accompanied by 4 allies 35252 | -4/Hub_04(d) | Spotted B-86 Titan 35263 | -4/Hub_04(d) | Destroyed B-86 Titan 35383 | -4/Hub_04(d) | Incoming assault squad redirected 35484 | -4/Hub_04(d) | Discovered exit to Research (range 5) 35606 | -4/Hub_04(d) | Network Hub disabled 35633 | -4/Hub_04(d) | Network Hub disabled 35668 | -4/Hub_04(d) | Build established: Scavenger-Golem 35748 | -4/Hub_04(d) | Spotted Lightning 35748 | -4/Hub_04(d) | Spotted Lightning 35748 | -4/Hub_04(d) | Spotted Lightning 35778 | -4/Hub_04(d) | Destroyed Lightning 35799 | -4/Hub_04(d) | Destroyed Lightning 35802 | -4/Hub_04(d) | Destroyed Lightning 35835 | -4/Hub_04(d) | Found Prototype Device 35835 | -4/Hub_04(d) | Identified Exp. EM Disruption Field 35861 | -4/Hub_04(d) | Found Prototype Processor 35861 | -4/Hub_04(d) | Identified Exp. Targeting Computer 35894 | -4/Hub_04(d) | Spotted Lightning 35912 | -4/Hub_04(d) | Spotted Lightning 35915 | -4/Hub_04(d) | System corruption reached 10% 35918 | -4/Hub_04(d) | Spotted Lightning 35920 | -4/Hub_04(d) | Destroyed Lightning 35940 | -4/Hub_04(d) | Destroyed Lightning 35965 | -4/Hub_04(d) | Destroyed Lightning 35990 | -4/Hub_04(d) | Found Exp. Targeting Computer 35996 | -4/Hub_04(d) | Found Prototype Device 35996 | -4/Hub_04(d) | Identified Exp. Phase Shifter 36009 | -4/Hub_04(d) | Lost 4 parts (3u1w) 36081 | -4/Hub_04(d) | Discovered exit to Research (range 15) 36156 | -4/Hub_04(d) | Spotted Lightning 36156 | -4/Hub_04(d) | Spotted Lightning 36156 | -4/Hub_04(d) | Spotted Lightning 36159 | -4/Hub_04(d) | Discovered exit to Research (range 6) 36184 | -4/Hub_04(d) | Destroyed Lightning 36192 | -4/Hub_04(d) | Destroyed Lightning 36199 | -4/Hub_04(d) | First assault squad dispatched 36199 | -4/Hub_04(d) | Network Hub disabled 36225 | -4/Hub_04(d) | Destroyed 8 combat bots 36228 | -4/Hub_04(d) | Incoming assault squad redirected 36237 | -4/Hub_04(d) | Destroyed Lightning 36261 | -4/Hub_04(d) | Incoming assault squad redirected 36291 | -4/Hub_04(d) | Found Exp. Phase Shifter 36299 | -4/Hub_04(d) | Found Prototype Energy Cannon 36300 | -4/Hub_04(d) | Destroyed 8 combat bots 36306 | -4/Hub_04(d) | Found Exp. Targeting Computer 36338 | -4/Hub_04(d) | Entered Research 36338 | -3/Research | Evolved 2 slots: Power x1, Utility x1 36433 | -3/Research | Found Adv. Powered Armor 36538 | -3/Research | Revision forces began assault on 0b10 36571 | -3/Research | Met up with Revision 17++ 36615 | -3/Research | Identified exit to Testing 36821 | -3/Research | Identified EMDS 37038 | -3/Research | Research terminal network offline 37168 | -3/Research | Entered Testing 37384 | -3/Testing | Found Prototype Processor 37384 | -3/Testing | Identified Exp. Melee Analysis Suite 37507 | -3/Testing | Found Prototype Launcher 37507 | -3/Testing | Identified Z-bomb Delivery System 37634 | -3/Testing | Found Prototype Protection 37634 | -3/Testing | Identified Centrium Heavy Armor Plating 37732 | -3/Testing | Discovered new exit (range 8) 37774 | -3/Testing | Spotted PL-4L2IK8J3OM 37841 | -3/Testing | Destroyed PL-4L2IK8J3OM 37855 | -3/Testing | Found Prototype Processor 37855 | -3/Testing | Identified Exp. Core Analyzer 37937 | -3/Testing | Build established: Scavenger-Tank 38019 | -3/Testing | Found Prototype Energy Cannon 38019 | -3/Testing | Identified Imp. Potential Cannon 38211 | -3/Testing | System corruption reached 10% 38363 | -3/Testing | Found Prototype Leg 38363 | -3/Testing | Identified Myomer Exoskeleton 38575 | -3/Testing | Found Prototype Protection 38908 | -3/Testing | Spotted Striker 39016 | -3/Testing | Identified SHELL Armor 39308 | -3/Testing | Build established: Mutant 39435 | -3/Testing | Spotted Alpha 7 39464 | -3/Testing | Destroyed Alpha 7 39484 | -3/Testing | Found Prototype Ballistic Gun 39484 | -3/Testing | Identified Multirail 39519 | -3/Testing | Found Unknown Protection 39519 | -3/Testing | Identified Hvy. Reflective Plating 39939 | -3/Testing | Build established: Golem 40336 | -3/Testing | Entered Research 40336 | -2/Research | Evolved 2 slots: Utility x2 40586 | -2/Research | First assault squad dispatched 40799 | -2/Research | Build established: Gunner 40975 | -2/Research | Identified exit to Quarantine 41028 | -2/Research | Spotted B-90 Cyclops 41037 | -2/Research | Destroyed B-90 Cyclops 41121 | -2/Research | Discovered new exit (range 12) 41147 | -2/Research | Fabricated Combat Drone Bay? 41364 | -2/Research | Repaired Broken Exp. EM Disruption Field? 41526 | -2/Research | Entered Quarantine 41695 | -2/Quarantine | Build established: Golem 42102 | -2/Quarantine | System corruption reached 10% 42128 | -2/Quarantine | Build established: Tank 42276 | -2/Quarantine | First assault squad dispatched 42374 | -2/Quarantine | Discovered new exit (range 32) 42454 | -2/Quarantine | Found Alien Artifact 42454 | -2/Quarantine | Identified Core Reset Matrix 42454 | -2/Quarantine | Used Core Reset Matrix 42458 | -2/Quarantine | Detected hypermatrix surge 42458 | -2/Quarantine | Sensed 12 artifacts in vicinity 43033 | -2/Quarantine | Spotted Fortress 43151 | -2/Quarantine | Discovered new exit (range 6) 43585 | -2/Quarantine | Entered Section 7 43586 | -2/Section 7 | Detected hypermatrix surge 43586 | -2/Section 7 | Sensed 24 artifacts in vicinity 43597 | -2/Section 7 | Build established: Golem 43616 | -2/Section 7 | Spotted S7 Guard 43630 | -2/Section 7 | Found Integrated Thermoelectric Network 43630 | -2/Section 7 | Installed Integrated Thermoelectric Network, gained heat-energy exchange potential 43658 | -2/Section 7 | Destroyed S7 Guard 43773 | -2/Section 7 | Scanned by Researcher 43818 | -2/Section 7 | Found Microwarp Drive 43873 | -2/Section 7 | Found Integrated Mediator 43873 | -2/Section 7 | Installed Integrated Mediator, increased core attachment efficiency 44095 | -2/Section 7 | Found Integrity Redistributor 44095 | -2/Section 7 | Used Integrity Redistributor, redistributed integrity from core (-282) 44335 | -2/Section 7 | First assault squad dispatched 44348 | -2/Section 7 | Spotted S7 Guard 44364 | -2/Section 7 | Destroyed S7 Guard 44381 | -2/Section 7 | Found Core Membrane 44381 | -2/Section 7 | Installed Core Membrane, gained immunity to corruption 44456 | -2/Section 7 | Spotted S7 Guard 44472 | -2/Section 7 | Destroyed S7 Guard 44492 | -2/Section 7 | Found Core Regenerator 44567 | -2/Section 7 | Spotted Alpha 7 44589 | -2/Section 7 | Spotted Alpha 7 44591 | -2/Section 7 | Spotted B-99 Colossus 44629 | -2/Section 7 | Intercept squad dispatched 44632 | -2/Section 7 | Found Integrity Redistributor 44635 | -2/Section 7 | Found Integrity Redistributor 44638 | -2/Section 7 | Found Integrity Redistributor 44644 | -2/Section 7 | Spotted Tracker 44646 | -2/Section 7 | Spotted Tracker 44653 | -2/Section 7 | Destroyed Tracker 44659 | -2/Section 7 | Destroyed Tracker 44681 | -2/Section 7 | Spotted Combat Programmer 44691 | -2/Section 7 | Spotted Combat Programmer 44693 | -2/Section 7 | Destroyed Combat Programmer 44726 | -2/Section 7 | Core integrity fell below 50% 44738 | -2/Section 7 | Incoming assault squad redirected 44744 | -2/Section 7 | Found LRC Insulator 44744 | -2/Section 7 | Installed LRC Insulator, gained EM resistance (25) 44758 | -2/Section 7 | Found LRC Armor 44758 | -2/Section 7 | Installed LRC Armor, increased core integrity (+250) 44761 | -2/Section 7 | Found LRC Matter Compressor 44761 | -2/Section 7 | Installed LRC Matter Compressor, increased matter storage capacity (+125) 44796 | -2/Section 7 | Incoming assault squad redirected 44807 | -2/Section 7 | Incoming assault squad redirected 44876 | -2/Section 7 | Core integrity fell below 20% 44882 | -2/Section 7 | Found Prototype Protection 44882 | -2/Section 7 | Identified Hvy. Regenerative Plating 44883 | -2/Section 7 | Used Core Regenerator, restored core integrity (+425) 44904 | -2/Section 7 | Build established: Alien-Golem 45009 | -2/Section 7 | Spotted B-90 Cyclops 45016 | -2/Section 7 | Discovered new exit (range 8) 45020 | -2/Section 7 | Entered Access 45020 | -1/Access | Evolved 2 slots: Power x1, Propulsion x1 45026 | -1/Access | Used Integrity Redistributor, redistributed integrity from core (-379) 45270 | -1/Access | First assault squad dispatched 45373 | -1/Access | Destroyed 8 combat bots 45377 | -1/Access | Build established: Generator-Golem 45643 | -1/Access | Found Prototype Processor 45643 | -1/Access | Identified Exp. Melee Analysis Suite 45663 | -1/Access | Found Prototype Device 45663 | -1/Access | Identified Exp. Actuator Array 45742 | -1/Access | Intercept squad dispatched 45753 | -1/Access | Spotted Tracker 45754 | -1/Access | Spotted Tracker 45765 | -1/Access | Spotted Combat Programmer 45772 | -1/Access | Destroyed Tracker 45772 | -1/Access | Destroyed Tracker 45774 | -1/Access | Destroyed Combat Programmer 45777 | -1/Access | Used Integrity Redistributor, redistributed integrity from core (-305) 45799 | -1/Access | Spotted B-99 Colossus 45826 | -1/Access | Spotted Combat Programmer 45846 | -1/Access | Destroyed Combat Programmer 45868 | -1/Access | Core integrity fell below 50% 45923 | -1/Access | Build established: Generator-Mutant 46183 | -1/Access | Garrison activated, responded to threat 46404 | -1/Access | Build established: Generator-Golem 46434 | -1/Access | Garrison activated, responded to threat 46482 | -1/Access | High security lockdown imminent 46497 | -1/Access | Emitted hypermatrix ping 46502 | -1/Access | Assembled emerged from beneath the floor 46502 | -1/Access | Assembled emerged from beneath the floor 46507 | -1/Access | Garrison activated, responded to threat 46508 | -1/Access | Destroyed 13 combat bots 46519 | -1/Access | Intercept squad dispatched 46538 | -1/Access | Spotted Tracker 46541 | -1/Access | Spotted Tracker 46550 | -1/Access | Core integrity fell below 20% 46554 | -1/Access | Destroyed Tracker 46560 | -1/Access | Destroyed Tracker 46562 | -1/Access | High security lockdown engaged 46583 | -1/Access | Spotted Combat Programmer 46586 | -1/Access | Spotted Combat Programmer 46603 | -1/Access | Destroyed Combat Programmer 46612 | -1/Access | Destroyed Combat Programmer 46633 | -1/Access | Destroyed 15 combat bots 46673 | -1/Access | Core destroyed Last Messages --------------- 46666_ L-61 Swordsman unfolds itself. 46666_ G-73 Enforcer unfolds itself. 46666_ I-47 Archangel unfolds itself. 46666_ Slug penetrates Wall. 46666_ C-30 ARC bursts open, deploying its payload. 46666_ G-73 Enforcer unfolds itself. 46666_ L-61 Swordsman unfolds itself. 46666_ G-73 Enforcer unfolds itself. 46666_ I-47 Archangel unfolds itself. 46667_ Microwarped (distance 24). 46667_ Adv. Power Amplifier destroyed. 46668_ Microwarped (distance 7). 46669_ Microwarped (distance 38). 46670_ Detected hypermatrix ping. 46670_ Microwarped (distance 7). 46671_ K-01 Serf collects debris. 46671_ Microwarped (distance 28). 46672_ Microwarped (distance 7). 46673_ Microwarped (distance 35). Map ----- +----------------------------------------------------+ | " # """"" %!# #! # | | " # """"" *=+ % "######## | | ? #! """"" !#[ ##??????? | | ? # =#%! #???????? | | ?? ?# # = #???????? | | ?????############## #???????? | | ??????? # #????#### | | ???????? # #??? # | | ???????? # #??? # | | ????????""" " #?? # | | ????????""" # #?? ! # | | ????????""" # #? # | | ????????""" # #? # | | ????????""" # # # | | ???????"""" # # # | | ?????# + + # | | ?????# # # # | | ?????# ! # # # | | ################### #? # | | #?"" # | | #?? # | | #??" # | | #??? # | | #??? # | | #????#### | | @#???????? | | ############ ########???????? | | ???????????# #??????????????? | | ???????????# #??????????????? | | ???????????# #??????????????? | | ???????????# #??????????????? | | ############ #??????????????? | | #??????????????? | | ####################??????????????? | | ??????????????????????????????????? | | ??????????????????????????????????? | | ??????????????????????????????????? | | ??????????????????????????????????? | | ??????????????????????????????????? | | ??????????????????????????????????? | | ??????????????????????????????????? | | ??????????????????????????????????? | | ??????????????????????????????????? | | ??????????????????????????????????? | | ??????????????????????????????????? | | ??????????????????????????????????? | | | | | | | | | +----------------------------------------------------+ Best States ------------- Heat Dissipation 97 Energy Generation 119 Energy Capacity 1600 Matter Stores 425 Matter Capacity 425 Sight Range 16 Robot Scan Range 15 Terrain Scan Range 16 Terrain Scan Density 10 ECM Strength 1 Jamming Range 16 Cloak Strength 3 Power Amplification 30 Additional Mass Support 20 EM Shielding 4 Armor Coverage 2000 Resistance: KI 15 Resistance: TH 25 Resistance: EX 15 Resistance: EM 100 Resistance: I 15 Resistance: S 15 Resistance: P 15 Weapon Shielding 100 Phase Shifting 20 Evasion (%) 65 Targeting Accuracy 24 Core Analysis 8 Recoil Reduction 5 Particle Charging 25 Offensive Hacking 36 Defensive Hacking 12 Authchip Count 2 Item Schematics ----------------- Gravity Neutralizer | -2/Section 7 | Archive Hvy. Wave Gun | -2/Section 7 | Archive Adv. Gravity Neutralizer | -2/Section 7 | Archive Robot Schematics ------------------ A-15 Conveyor | -2/Section 7 | Archive G-73 Enforcer | -2/Section 7 | Archive Fabricated ------------ Combat Drone Bay | x1 | -4/Factory | Authchip Combat Drone Bay | x1 | -2/Research Repaired ---------- Hcp. Storage Unit | 72% | -8/Materials Lgt. Treads | 57% | -8/Materials Imp. VTOL Module | 68% | -7/Factory Exp. EM Disruption Field | 22% | -2/Research | Broken Alien Tech Used ----------------- Dimensional Node Initializer Core Reset Matrix Integrated Thermoelectric Network Integrated Mediator Integrity Redistributor Core Membrane Microwarp Drive LRC Insulator LRC Armor LRC Matter Compressor Core Regenerator Achievements -------------- None Challenges ------------ None Game ------ Seed FlyingRelayTerminator Manual? 0 Play Time 06:26:39 Cumulative 456.7 hours Start 2024.11.12 @ 14:22:12 End 2024.11.13 @ 03:40:55 Sessions 11 Manual Loads 0 Difficulty Rogue Special Mode None Game No. 306 Rogue 301 Adventurer 5 Explorer 0 Win Type - Total 11 Types 5/0/5/0/0/0/1/0/0 Lore% 79 Gallery% 90 Achievement% 75 Wizard Run 0 Options --------- Layout 2 ASCII 0 Keyboard 0 Movement Mouse Keybinds 0 Fullscreen 2 Font 24/Smallcaps Map View 50x44 Zoom Use 0% Tactical HUD 1 Map Filters NONE Filters NONE Steam 1 RUN: 30f815b1-a447-4c89-a142-b5042322a7c4